{"text_format":"1","workbook":"xlsx","n_sheets":13,"sheets":["AER only","Instructions","Contents","Business & other details","3.1 Revenue","3.2 Operating expenditure","3.2.3 Provisions","3.3 Assets (RAB)","3.4 Operational data","3.5 Physical assets","3.6 Quality of service","3.7 Operating environment","NSP amendments"],"not_rendered":{"charts":0,"images":5,"macros":1,"external_links":3,"defined_names":392,"comments":1,"pivot_tables":0},"unopened":[],"bounds":{"document_bytes":16777216,"sheet_cells":100000,"rows_first":2000,"rows_last":500,"rows_between":2000,"halvings":0,"cell_chars":16384,"cell_head_chars":4096},"cells_cut":0,"cells_raw":0,"read":"whole","date_system":"1900"}

{"sheet":"AER only","index":0,"n_rows":98,"n_cols":37,"rows_kept":98,"cut":false,"hidden":true,"merged":[[81,4,81,11],[0,1,0,11],[3,25,3,35],[4,25,4,28],[4,31,4,35],[44,22,44,26],[45,1,45,5],[45,14,45,21],[45,22,45,26],[46,2,46,3],[46,34,48,34],[49,34,53,34],[57,34,58,34],[63,22,63,25]]}
[null,"Data in these columns used for data validation and database purposes."]
[null,"Date last modified:","2016-08-08","added new business names, improved column heading formatting"]
[]
[null,null,null,null,null,null,null,null,null,null,null,null,null,null,null,null,null,null,null,null,null,null,null,null,null,"FOR ELECTRICITY BUSINESSES ONLY"]
[null,null,null,null,null,null,null,null,null,null,null,null,null,null,null,null,null,null,null,null,null,null,null,null,null,"Feeder Types",null,null,null,"TasNetworks (D)","MAIFI flag","Feeder Names"]
[null,null,null,null,null,null,null,null,null,null,null,null,null,null,null,null,null,null,null,null,null,null,null,null,null,"CBD","Urban","Short rural","long rural","EXTRA"]
[null,"dms_TradingName_List","dms_TradingNameFull_List","dms_ABN_List","dms_JurisdictionList","dms_Sector_List","dms_Segment_List","dms_FormControl_List","dms_RPT_List","dms_RPTMonth_List","dms_CRCPlength_List","dms_FRCPlength_List","dms_663_List","dms_DeterminationRef_List","dms_Addr1_List","dms_Addr2_List","dms_Suburb_List","dms_State_List","dms_PostCode_List","dms_PAddr1_List","dms_PAddr2_List","dms_PSuburb_List","dms_PState_List","dms_PPostCode_List",null,"dms_CBD_flag","dms_Urban_flag","dms_ShortRural_flag","dms_LongRural_flag","dms_FeederType_5_flag","dms_MAIFI_flag_List","dms_FeederName_1","dms_FeederName_2","dms_FeederName_3","dms_FeederName_4","dms_FeederName_5"]
[null,"ActewAGL Distribution","ActewAGL Distribution",76670568688,"ACT","Electricity","Distribution","Revenue cap","Financial","June",5,5,5,"2014-19 Distribution Determination","40 Bunda Street",null,"CANBERRA","ACT","2600","GPO BOX 366",null,"CANBERRA","ACT",2601,null,"NO","YES","YES","NO","NO",null,"CBD","Urban","Short rural","Long rural",null,"ActewAGL Distribution"]
[null,"ActewAGL Distribution (Tx Assets)","ActewAGL Distribution (Tx Assets)",76670568688,"ACT","Electricity","Distribution","Revenue cap","Financial","June",5,5,5,"distribution determination","40 Bunda Street",null,"CANBERRA","ACT","2600","GPO BOX 366",null,"CANBERRA","ACT",2601,null,null,null,null,null,null,null,"CBD","Urban","Short rural","Long rural",null,"ActewAGL Distribution (Tx Assets)"]
[null,"ActewAGL Gas","ActewAGL Gas",76670568688,"ACT","Gas","Distribution","Weighted average price cap","Financial","June",5,5,"x",null,"40 Bunda Street",null,"CANBERRA","ACT","2600","GPO BOX 366",null,"CANBERRA","ACT",2601,null,null,null,null,null,null,null,null,null,null,null,null,"ActewAGL Gas"]
[null,"AGN (SA)","AGN (SA)",78551685,"SA","Gas","Distribution","Revenue cap","Financial","June",5,5,5,"distribution determination",null,null,null,"SA",null,null,null,null,null,null,null,null,null,null,null,null,null,"CBD","Urban","Short rural","Long rural",null,"AGN (SA)"]
[null,"AGN (Victoria)","Australian Gas Networks Limited",19078551685,"Vic","Gas","Distribution","Weighted average price cap","Calendar","December",5,5,"x",null,"Level 10","81 Flinders Street","ADELAIDE","SA","5000",null,null,null,null,null,null,null,null,null,null,null,null,null,null,null,null,null,"AGN (Victoria)"]
[null,"Amadeus","APT Pipelines (NT) Pty Ltd",39009737393,"NT","Gas","Transmission","Weighted average price cap","Financial","June",5,5,"x","n/a","Level 19, HSBC Building","580 George Street","SYDNEY","NSW","2000","Level 19, HSBC Building","580 George Street","SYDNEY","NSW","2000",null,null,null,null,null,null,null,null,null,null,null,null,"Amadeus"]
[null,"APA GasNet","APA VTS Australia Limited",79096457868,"Vic","Gas","Transmission","Weighted average price cap","Calendar","December",5,5,"x",null,"Level 19, HSBC Building","580 George Street","SYDNEY","NSW","2000","PO Box R41",null,"ROYAL EXCHANGE","NSW","1225",null,null,null,null,null,null,null,null,null,null,null,null,"APA GasNet"]
[null,"Ausgrid","Ausgrid",67505337385,"NSW","Electricity","Distribution","Revenue cap","Financial","June",5,5,5,"2014-19 Distribution Determination","570 George St",null,"SYDNEY","NSW",2000,null,null,null,null,null,null,"YES","YES","YES","YES","NO",null,"CBD","Urban","Short rural","Long rural",null,"Ausgrid"]
[null,"Ausgrid (Tx Assets)","Ausgrid (Tx Assets)",67505337385,"NSW","Electricity","Distribution","Revenue cap","Financial","June",5,5,5,"distribution determination",null,null,null,"NSW",null,null,null,null,null,null,null,null,null,null,null,null,null,"CBD","Urban","Short rural","Long rural",null,"Ausgrid (Tx Assets)"]
[null,"AusNet (D)","AusNet Services (D)",91064651118,"Vic","Electricity","Distribution","Revenue cap","Calendar","December",5,5,2,"2016-20 Distribution Determination","Level 32","2 Southbank Boulevard","SOUTHBANK","Vic","3006","Locked Bag 14051",null,"MELBOURNE CITY MAIL CENTRE","VIC",8001,null,null,"YES","YES","YES","NO",null,"CBD","Urban","Short rural","Long rural",null,"AusNet (D)"]
[null,"AusNet (Gas)","AusNet Gas Services",null,"Vic","Gas","Distribution","Weighted average price cap","Calendar","December",5,5,"X",null,null,null,null,null,null,null,null,null,null,null,null,null,null,null,null,null,null,null,null,null,null,null,"AusNet (Gas)"]
[null,"AusNet (T)","AusNet (T)",78079798173,"Vic","Electricity","Transmission","Revenue cap","Financial","March",5,5,2,"transmission determination","Level 32","2 Southbank Boulevard","SOUTHBANK","Vic","3006",null,null,null,null,null,null,null,null,null,null,null,null,"CBD","Urban","Short rural","Long rural",null,"AusNet (T)"]
[null,"Australian Distribution Co.","Australian Distribution Co.",11222333444,"-","Electricity","Distribution","Revenue cap","Financial","June",5,5,2,"distribution determination","123 Straight Street",null,"SYDNEY","NSW","2000","PO Box 123",null,"SYDNEY","NSW",2000,null,null,null,null,null,null,null,"CBD","Urban","Short rural","Long rural",null,"Australian Distribution Co."]
[null,"Australian Transmission Co.","Australian Transmission Co.",11222333444,"-","Electricity","Transmission","Revenue cap","Financial","June",5,5,5,"transmission determination","123 Straight Street",null,"SYDNEY","NSW","2000","PO Box 123",null,"SYDNEY","NSW",2000,null,null,null,null,null,null,null,"CBD","Urban","Short rural","Long rural",null,"Australian Transmission Co."]
[null,"CitiPower","CitiPower",76064651056,"Vic","Electricity","Distribution","Revenue cap","Calendar","December",5,5,2,"2016-20 Distribution Determination","40 Market Street",null,"MELBOURNE","Vic","3000","Locked Bag 14090",null,"MELBOURNE","VIC",8001,null,"YES","YES","NO","NO","NO",null,"CBD","Urban","Short rural","Long rural",null,"CitiPower"]
[null,"Directlink","Directlink",16779340889,"Qld","Electricity","Transmission","Revenue cap","Financial","June",9,5,5,"transmission determination",null,null,null,"NSW",null,null,null,null,null,null,null,null,null,null,null,null,null,"CBD","Urban","Short rural","Long rural",null,"Directlink"]
[null,"ElectraNet","ElectraNet",41094482416,"SA","Electricity","Transmission","Revenue cap","Financial","June",5,5,5,"transmission determination","52-55 East Terrace","Rymill Park","ADELAIDE","SA","5000","PO Box 7096","Hutt Street Post Office","ADELAIDE","SA",null,null,null,null,null,null,null,null,"CBD","Urban","Short rural","Long rural",null,"ElectraNet"]
[null,"Endeavour Energy","Endeavour Energy",59253130878,"NSW","Electricity","Distribution","Revenue cap","Financial","June",5,5,5,"2014-19 Distribution Determination","51 Huntingwood Drive",null,"HUNTINGWOOD","NSW","2148","PO Box 811",null,"SEVEN HILLS","NSW",null,null,"NO","YES","YES","YES","NO",null,"CBD","Urban","Short rural","Long rural",null,"Endeavour Energy"]
[null,"Energex","Energex",40078849055,"Qld","Electricity","Distribution","Revenue cap","Financial","June",5,5,5,"2015-20 Distribution Determination","26 Reddacliff Street",null,"NEWSTEAD","Qld","4006","26 Reddacliff Street",null,"NEWSTEAD","QLD","4006",null,"YES","YES","YES","NO","NO",null,"CBD","Urban","Short rural","Long rural",null,"Energex"]
[null,"Ergon Energy","Ergon Energy",50087646062,"Qld","Electricity","Distribution","Revenue cap","Financial","June",5,5,5,"2015-20 Distribution Determination","22 Walker Street",null,"TOWNSVILLE","Qld","4810","Po Box 264",null,"FORTITUDE VALLEY","QLD",4006,null,"NO","YES","YES","YES","NO",null,"CBD","Urban","Short rural","Long rural",null,"Ergon Energy"]
[null,"Essential Energy","Essential Energy",37428185226,"NSW","Electricity","Distribution","Revenue cap","Financial","June",5,5,5,"2014-19 Distribution Determination","8 Buller Street",null,"PORT MACQUARIE","NSW",null,"PO Box 5730",null,"PORT MACQUARIE","NSW",null,null,null,null,"YES","YES","NO",null,"CBD","Urban","Short rural","Long rural",null,"Essential Energy"]
[null,"Jemena Electricity","Jemena Electricity",82064651083,"Vic","Electricity","Distribution","Revenue cap","Calendar","December",5,5,2,"2016-20 Distribution Determination","Level 16","567 Collins Street","MELBOURNE","VIC","3000","PO Box 16182",null,"MELBOURNE","VIC",8001,null,null,null,"YES","NO","NO",null,"CBD","Urban","Short rural","Long rural",null,"Jemena Electricity"]
[null,"JGN","Jemena Gas Networks",null,"NSW","Gas","Distribution","Weighted average price cap","Financial","June",5,5,null,null,null,null,null,null,null,null,null,null,null,null,null,null,null,null,null,null,null,null,null,null,null,null,"JGN"]
[null,"Multinet Gas","Multinet Gas (DB No.1) Pty Ltd (ACN 086 026 986), Multinet Gas (DB No.2) Pty Ltd (ACN 086 230 122)",86026986,"Vic","Gas","Distribution","Weighted average price cap","Calendar","December",5,5,"x",null,null,null,null,null,null,null,null,null,null,null,null,null,null,null,null,null,null,null,null,null,null,null,"Multinet Gas"]
[null,"Murraylink","Murraylink",79181207909,"SA","Electricity","Transmission","Revenue cap","Financial","June",5,5,5,"transmission determination",null,null,null,null,null,null,null,null,null,null,null,null,null,null,null,null,null,"CBD","Urban","Short rural","Long rural",null,"Murraylink"]
[null,"Powercor Australia","Powercor Australia",89064651109,"Vic","Electricity","Distribution","Revenue cap","Calendar","December",5,5,2,"2016-20 Distribution Determination","40 Market Street",null,"MELBOURNE","Vic","3000","Locked bag 14090",null,"MELBOURNE","VIC",8001,null,null,null,"YES","YES","NO",null,"CBD","Urban","Short rural","Long rural",null,"Powercor Australia"]
[null,"Powerlink","Queensland Electricity Transmission Corporation Limited trading as Powerlink Queensland",82078849233,"Qld","Electricity","Transmission","Revenue cap","Financial","June",5,5,5,"transmission determination","33 Harold St",null,"VIRGINIA","Qld","4014","PO Box 1193",null,"VIRGINIA","QLD",4014,null,null,null,null,null,null,null,"CBD","Urban","Short rural","Long rural",null,"Powerlink"]
[null,"Roma to Brisbane Pipeline","APT Petroleum Pipelines Limited t/a Roma to Brisbane Pipeline","009 737 393","Qld","Gas","Transmission","Revenue cap","Financial","June",5,5,"x","n/a",null,null,null,null,null,null,null,null,null,null,null,null,null,null,null,null,null,"CBD","Urban","Short rural","Long rural",null,"Roma to Brisbane Pipeline"]
[null,"SA Power Networks","SA Power Networks",13332330749,"SA","Electricity","Distribution","Revenue cap","Financial","June",5,5,5,"2015-20 Distribution Determination","1 Anzac Highway",null,"KESWICK","SA","5035","GPO Box 77",null,"ADELAIDE","SA",null,null,null,null,"YES","YES","NO",null,"CBD","Urban","Short rural","Long rural",null,"SA Power Networks"]
[null,"TasNetworks (D)","TasNetworks (D)",24167357299,"Tas","Electricity","Distribution","Revenue cap","Financial","June",5,5,5,"distribution determination","21 Kirksway Place",null,"HOBART","Tas","7000","GPO Box 191",null,"HOBART","Tas",null,null,null,null,"YES","YES","YES",null,"Critical Infrastructure","High density commercial","Urban","High density rural","Low density rural","TasNetworks (D)"]
[null,"TasNetworks (T)","TasNetworks (T)",24167357299,"Tas","Electricity","Transmission","Revenue cap","Financial","March",5,5,5,"transmission determination","1-7 Maria Street",null,"LENAH VALLEY","Tas","7008","PO Box 606",null,"MOONAH","Tas",null,null,null,null,null,null,null,null,"CBD","Urban","Short rural","Long rural",null,"TasNetworks (T)"]
[null,"TransGrid","TransGrid",19622755774,"NSW","Electricity","Transmission","Revenue cap","Financial","June",5,4,5,"transmission determination","180 Thomas Street",null,"HAYMARKET","NSW","2000","PO Box A1000",null,"SYDNEY SOUTH","NSW",null,null,null,null,null,null,null,null,"CBD","Urban","Short rural","Long rural",null,"TransGrid"]
[null,"United Energy","United Energy",70064651029,"Vic","Electricity","Distribution","Revenue cap","Calendar","December",5,5,2,"2016-20 Distribution Determination","Level 3","6 Nexus Court","MULGRAVE","Vic","3149","PO Box 449",null,"MOUNT WAVERLEY","VIC",3170,null,null,null,"YES","NO","NO",null,"CBD","Urban","Short rural","Long rural",null,"United Energy"]
[null,"Western Power (D)","Western Power (D)",18540492861,"WA","Electricity","Distribution","Revenue cap","Financial","June",12,4,"x","distribution determination","363 Wellington Street",null,"PERTH","WA","6000","GPO Box L921",null,"PERTH","WA",6842,null,null,null,"YES","YES","NO","NO","CBD","Urban","Short rural","Long rural",null,"Western Power (D)"]
[null,"Western Power (T)","Western Power (T)",18540492861,"WA","Electricity","Transmission","Revenue cap","Financial","June",12,4,"x","transmission determination","363 Wellington Street",null,"PERTH","WA","6000","GPO Box L921",null,"PERTH","WA",6842,null,null,null,"YES","YES","NO",null,"CBD","Urban","Short rural","Long rural",null,"Western Power (T)"]
[]
[]
[null,null,null,null,null,null,null,null,null,null,null,null,null,null,null,null,null,null,null,null,null,null,"For EB & Reset RINs only"]
[null,"The Reg Year Ending (dms_RYE) must be set to the last year of the regulatory period. For forecast data is is usually (FRCP_y5) for actual it is a single year (CRY). For historical actual data the RYE will need to be set manually in the business details sheet by setting the dms_Multiyear_flag to 1 and putting the correct value in 'dms_Specified_FinalYear. See cells C67:C68",null,null,null,null,{"$f":"IF(dms_RPT=\"financial\",VALUE(LEFT(CRCP_y1,4)-1)&\"-\"&TEXT(VALUE(RIGHT(CRCP_y1,2)-1),\"00\"),VALUE(LEFT(CRCP_y1,4)-1))","v":"2009-10"},null,null,null,null,null,null,"Drop down selector box for CA & Reset RINs.","For CA & Reset RINs only",null,null,null,null,null,null,null,"for DNSP only",null,null,null,null,null,null,null,null,null,null,null,"Reason for interruption","dms_Reason_Interruption_Detailed","dms_Reason_Interruption"]
[null,"dms_Model_List ","DELETE NR 'CRY' IF NOT AN ANNUAL RIN (EB, CA , ARR)",null,"dms_RYE_Formula_Result",null,null,null,null,null,null,null,null,"dms_0203_ProjectType","dms_020303_01_UOM","dms_020501_01_UOM","dms_020501_02_UOM","dms_020501_03_UOM","dms_020501_04_UOM","dms_020603_01_UOM","dms_040102_01_UOM","dms_040102_04_UOM","dms_030601_01_UOM","dms_030601_02_UOM","dms_030701_01_UOM","dms_030702_01_UOM","dms_030703_01_UOM",null,null,null,null,null,null,null,"Animal","Animal impact","Animal"]
[null,"ARR","ANNUAL REPORTING STATEMENT",null,{"$f":"LEFT(dms_SingleYear_FinalYear_Result,2)&RIGHT(dms_SingleYear_FinalYear_Result,2)","v":"2016"},"=LEFT(dms_SingleYear_FinalYear_Result,2)&RIGHT(dms_SingleYear_FinalYear_Result,2)",null,"Formula errors are OK",null,null,null,null,null,"New line on new route - single circuit","Circuit line length in km","0's","0's","0's","0's","0's","0's","days","minutes/customer","minutes/customer","Customer / km","%","km",null,null,null,null,null,null,null,null,"Animal nesting/burrowing, etc and other","Asset failure"]
[null,"CA","CATEGORY ANALYSIS",null,{"$f":"LEFT(dms_SingleYear_FinalYear_Result,2)&RIGHT(dms_SingleYear_FinalYear_Result,2)","v":"2016"},"=LEFT(dms_SingleYear_FinalYear_Result,2)&RIGHT(dms_SingleYear_FinalYear_Result,2)",null,"Formula errors are OK",null,null,null,null,null,"New line on new route - dual circuit","Circuit line length in km","0's","0's","0's","0's","0's","0's","0's","minutes/customer","minutes/customer","MWh/customer","Number of spans",null,null,null,null,null,null,null,null,null,"Other","Other"]
[null,"CPI","CPI",null,null,null,null,null,null,null,null,null,null,"New line on new route - other","Circuit line length in km","MVA added","MVA added","MVA added","MVA added","0's","0's","$0s","interruptions/customer","interruptions/customer","kVA / customer","Number of spans",null,null,null,null,null,null,null,null,"Asset failure","LV","Overloads"]
[null,"EB","ECONOMIC BENCHMARKING",null,{"$f":"LEFT(dms_SingleYear_FinalYear_Result,2)&RIGHT(dms_SingleYear_FinalYear_Result,2)","v":"2016"},"=LEFT(dms_SingleYear_FinalYear_Result,2)&RIGHT(dms_SingleYear_FinalYear_Result,2)",null,"Formula errors are OK",null,null,null,null,null,"Line rebuild over existing route - single circuit","Circuit line length in km","0's","0's","0's","0's","0's","$0s","0's","interruptions/customer","interruptions/customer",null,"Number of spans",null,null,null,null,null,null,null,null,null,"Distribution substation","Planned"]
[null,"PTRM","POST TAX REVENUE MODEL",null,{"$f":"LEFT(dms_MultiYear_FinalYear_Result,2)&RIGHT(dms_MultiYear_FinalYear_Result,2)","v":"2020"},"=LEFT(dms_MultiYear_FinalYear_Result,2)&RIGHT(dms_MultiYear_FinalYear_Result,2)",null,null,null,null,null,null,null,"Line rebuild over existing route - dual circuit","Number","total spend $0s","total spend $0s","total spend $0s","total spend $0s","(per cent)",null,null,null,null,null,"Number of spans",null,null,null,null,null,null,null,null,null,"HV","Network business"]
[null,"Reset","REGULATORY REPORTING STATEMENT",null,{"$f":"LEFT(dms_MultiYear_FinalYear_Result,2)&RIGHT(dms_MultiYear_FinalYear_Result,2)","v":"2020"},"=LEFT(dms_MultiYear_FinalYear_Result,2)&RIGHT(dms_MultiYear_FinalYear_Result,2)",null,"Formula errors are OK",null,null,null,null,null,"Reconductor - Single circuit","Number","net circuit km added","net circuit km added","net circuit km added","net circuit km added",null,null,null,null,null,null,"Years",null,null,null,null,null,null,null,null,null,"Zone substation","Third party"]
[null,"RFM","ROLL FORWARD MODEL",null,{"$f":"LEFT(dms_CRCP_FinalYear_Result,2)&RIGHT(dms_CRCP_FinalYear_Result,2)","v":"2016"},"=LEFT(dms_CRCP_FinalYear_Result,2)&RIGHT(dms_CRCP_FinalYear_Result,2)",null,null,null,null,null,null,null,"Reconductor - Dual circuit","Number","total spend $0s","total spend $0s","total spend $0s","total spend $0s",null,null,null,null,null,null,"Years",null,null,null,null,null,null,null,null,null,"Subtransmission","Unknown"]
[null,"WACC","WEIGHTED AVERAGE COST OF CAPITAL",null,{"$f":"LEFT(dms_MultiYear_FinalYear_Result,2)&RIGHT(dms_MultiYear_FinalYear_Result,2)","v":"2020"},"=LEFT(dms_MultiYear_FinalYear_Result,2)&RIGHT(dms_MultiYear_FinalYear_Result,2)",null,null,null,null,null,null,null,"Other",null,"net circuit km added","net circuit km added","net circuit km added","net circuit km added",null,null,null,null,null,null,"Trees",null,null,null,null,null,null,null,null,"Other","insert description of 'other'","Vegetation"]
[null,null,null,null,null,null,null,null,null,null,null,null,null,null,null,"total spend $0s","total spend $0s","total spend $0s","total spend $0s",null,null,null,null,null,null,"Trees",null,null,null,null,null,null,null,null,"Overloads","Network error","Weather"]
[null,null,null,null,null,null,null,null,null,null,null,null,null,null,null,"0's",null,"$0s",null,null,null,null,null,null,null,"Defects",null,null,null,null,null,null,null,null,"Planned","Switching and protection error","2 - STPIS Exclusion (3.3)(a)"]
[null,null,null,null,null,null,null,null,null,null,null,null,null,null,null,"0's",null,null,null,null,null,null,null,null,null,"Defects",null,null,null,null,null,null,null,null,"Network business","Fire","3 - STPIS Exclusion (3.3)(a)"]
[null,null,null,null,null,null,null,null,null,null,null,null,null,null,null,"0's",null,null,null,null,null,null,null,null,null,"Spans",null,null,null,null,null,null,null,null,null,"Other","4 - STPIS Exclusion (3.3)(a)"]
[null,null,null,null,null,null,null,null,null,null,null,null,null,null,null,"$0s",null,null,null,null,null,null,null,null,null,"km",null,null,null,null,null,null,null,null,"Third party","Dig-in","5 - STPIS Exclusion (3.3)(a)"]
[null,null,null,null,null,null,null,null,null,null,null,null,null,null,null,null,null,null,null,null,null,null,null,null,null,"Spans",null,null,null,"",null,null,null,null,null,"Unauthorised access","6 - STPIS Exclusion (3.3)(a)"]
[null,null,null,null,null,null,null,null,null,null,null,null,null,null,null,null,null,null,null,null,null,null,null,null,null,null,null,null,null,null,null,null,null,null,null,"Vehicle impact","7 - STPIS Exclusion (3.3)(a)"]
[null,null,null,null,null,null,null,null,null,null,null,null,null,null,null,null,null,null,null,null,null,null,null,null,null,null,null,null,null,null,null,null,null,null,null,"Unknown"]
[null,"For all files either AER or business needs to be able to specify the type of submission","For PTRM & RFM templates we must provide a choice in case they change their form of control - otherwise it is drawn from the business specific lookup table above.",null,"These are indeces and lookup values for various dates. All step from the value placed in FRCP_y1 on the business and other details worksheet",null,null,null,null,null,null,null,null,null,null,null,null,null,null,null,null,null,"for TNSP only",null,null,null,null,null,null,null,null,null,null,null,null,"Blow-in/Fall-in - NSP responsibility"]
[null,"dms_SourceList","dms_FormControl_Choices",null,"dms_FRCPlength_Num_List","dms_FinalYear_List","dms_CRCPlength_Num_List","dms_CFinalYear_List","dms_FRCP_years",null,"dms_CRCP_years",null,"dms_CRCP_index",null,null,null,null,null,null,null,null,null,"dms_030601_01_UOM",null,"dms_030701_01_UOM","dms_030702_01_UOM",null,null,null,null,null,null,null,null,"Unknown","Grow-in - NSP responsibility"]
[null,"After appeal","Revenue cap",null,1,"dms_FRCP_y1",1,"CRCP_y1",{"$f":"FRCP_y1","v":"2015-16"},"dms_FRCP_y1",{"$f":"IF(dms_RPT=\"financial\",VALUE(LEFT(dms_FRCP_y1,4)-1)&\"-\"&TEXT(VALUE(MID(dms_FRCP_y1,3,2)),\"00\"),VALUE(LEFT(dms_FRCP_y1,4)-1))","v":"2014-15"},"dms_CRCP_yZ",1,null,null,null,null,null,null,null,null,null,"%",null,"Number of spans","km",null,null,null,null,null,null,null,null,"Vegetation","Blow-in/Fall-in - Other responsible party"]
[null,"Draft decision","Revenue yield",null,2,"dms_FRCP_y2",2,"CRCP_y2",{"$f":"IF(dms_RPT=\"financial\",VALUE(LEFT(dms_FRCP_y1,4)+1)&\"-\"&TEXT(VALUE(RIGHT(dms_FRCP_y1,2)+1),\"00\"),VALUE(LEFT(dms_FRCP_y1,4)+1))","v":"2016-17"},"dms_FRCP_y2",{"$f":"IF(dms_RPT=\"financial\",VALUE(LEFT(dms_CRCP_yZ,4)-1)&\"-\"&TEXT(VALUE(MID(dms_CRCP_yZ,3,2)),\"00\"),VALUE(LEFT(dms_CRCP_yZ,4)-1))","v":"2013-14"},"dms_CRCP_yY",2,null,null,null,null,null,null,null,null,null,"number",null,"Years","%",null,null,null,null,null,null,null,null,null,"Grow-in - Other responsible party"]
[null,"Final decision","Weighted average price cap",null,3,"dms_FRCP_y3",3,"CRCP_y3",{"$f":"IF(dms_RPT=\"financial\",VALUE(LEFT(dms_FRCP_y2,4)+1)&\"-\"&TEXT(VALUE(RIGHT(dms_FRCP_y2,2)+1),\"00\"),VALUE(LEFT(dms_FRCP_y2,4)+1))","v":"2017-18"},"dms_FRCP_y3",{"$f":"IF(dms_RPT=\"financial\",VALUE(LEFT(dms_CRCP_yY,4)-1)&\"-\"&TEXT(VALUE(MID(dms_CRCP_yY,3,2)),\"00\"),VALUE(LEFT(dms_CRCP_yY,4)-1))","v":"2012-13"},"dms_CRCP_yX",3,null,null,null,null,null,null,null,null,null,"number",null,"Trees","km"]
[null,"PTRM update 1",null,null,4,"dms_FRCP_y4",4,"CRCP_y4",{"$f":"IF(dms_RPT=\"financial\",VALUE(LEFT(dms_FRCP_y3,4)+1)&\"-\"&TEXT(VALUE(RIGHT(dms_FRCP_y3,2)+1),\"00\"),VALUE(LEFT(dms_FRCP_y3,4)+1))","v":"2018-19"},"dms_FRCP_y4",{"$f":"IF(dms_RPT=\"financial\",VALUE(LEFT(dms_CRCP_yX,4)-1)&\"-\"&TEXT(VALUE(MID(dms_CRCP_yX,3,2)),\"00\"),VALUE(LEFT(dms_CRCP_yX,4)-1))","v":"2011-12"},"dms_CRCP_yW",4,null,null,null,null,null,null,null,null,null,"%",null,"Defects","number"]
[null,"PTRM update 2",null,null,5,"dms_FRCP_y5",5,"CRCP_y5",{"$f":"IF(dms_RPT=\"financial\",VALUE(LEFT(dms_FRCP_y4,4)+1)&\"-\"&TEXT(VALUE(RIGHT(dms_FRCP_y4,2)+1),\"00\"),VALUE(LEFT(dms_FRCP_y4,4)+1))","v":"2019-20"},"dms_FRCP_y5",{"$f":"IF(dms_RPT=\"financial\",VALUE(LEFT(dms_CRCP_yW,4)-1)&\"-\"&TEXT(VALUE(MID(dms_CRCP_yW,3,2)),\"00\"),VALUE(LEFT(dms_CRCP_yW,4)-1))","v":"2010-11"},"dms_CRCP_yV",5,null,null,null,null,null,null,null,null,null,"number",null,"Number of spans",null,null,null,null,null,null,null,null,null,"Weather"]
[null,"PTRM update 3",null,null,6,"dms_FRCP_y6",6,"CRCP_y6",{"$f":"IF(dms_RPT=\"financial\",VALUE(LEFT(dms_FRCP_y5,4)+1)&\"-\"&TEXT(VALUE(RIGHT(dms_FRCP_y5,2)+1),\"00\"),VALUE(LEFT(dms_FRCP_y5,4)+1))","v":"2020-21"},"dms_FRCP_y6",{"$f":"IF(dms_RPT=\"financial\",VALUE(LEFT(dms_CRCP_yV,4)-1)&\"-\"&TEXT(VALUE(MID(dms_CRCP_yV,3,2)),\"00\"),VALUE(LEFT(dms_CRCP_yV,4)-1))","v":"2009-10"},"dms_CRCP_yU",6,null,null,null,null,null,null,null,null,null,"number",null,"km",null,null,null,null,null,null,null,null,null,"2 - STPIS Exclusion (3.3)(a)"]
[null,"PTRM update 4",null,null,7,"dms_FRCP_y7",7,"CRCP_y7",{"$f":"IF(dms_RPT=\"financial\",VALUE(LEFT(dms_FRCP_y6,4)+1)&\"-\"&TEXT(VALUE(RIGHT(dms_FRCP_y6,2)+1),\"00\"),VALUE(LEFT(dms_FRCP_y6,4)+1))","v":"2021-22"},"dms_FRCP_y7",{"$f":"IF(dms_RPT=\"financial\",VALUE(LEFT(dms_CRCP_yU,4)-1)&\"-\"&TEXT(VALUE(MID(dms_CRCP_yU,3,2)),\"00\"),VALUE(LEFT(dms_CRCP_yU,4)-1))","v":"2008-09"},"dms_CRCP_yT",7,null,null,null,null,null,null,null,null,null,"%",null,"km",null,null,null,null,null,null,null,null,null,"3 - STPIS Exclusion (3.3)(a)"]
[null,"PTRM update 5",null,null,8,"dms_FRCP_y8",8,"CRCP_y8",{"$f":"IF(dms_RPT=\"financial\",VALUE(LEFT(dms_FRCP_y7,4)+1)&\"-\"&TEXT(VALUE(RIGHT(dms_FRCP_y7,2)+1),\"00\"),VALUE(LEFT(dms_FRCP_y7,4)+1))","v":"2022-23"},"dms_FRCP_y8",{"$f":"IF(dms_RPT=\"financial\",VALUE(LEFT(dms_CRCP_yT,4)-1)&\"-\"&TEXT(VALUE(MID(dms_CRCP_yT,3,2)),\"00\"),VALUE(LEFT(dms_CRCP_yT,4)-1))","v":"2007-08"},"dms_CRCP_yS",8,null,null,null,null,null,null,null,null,null,"number",null,"Number of spans",null,null,null,null,null,null,null,null,null,"4 - STPIS Exclusion (3.3)(a)"]
[null,"PTRM update 6",null,null,9,"dms_FRCP_y9",9,"CRCP_y9",{"$f":"IF(dms_RPT=\"financial\",VALUE(LEFT(dms_FRCP_y8,4)+1)&\"-\"&TEXT(VALUE(RIGHT(dms_FRCP_y8,2)+1),\"00\"),VALUE(LEFT(dms_FRCP_y8,4)+1))","v":"2023-24"},"dms_FRCP_y9",{"$f":"IF(dms_RPT=\"financial\",VALUE(LEFT(dms_CRCP_yS,4)-1)&\"-\"&TEXT(VALUE(MID(dms_CRCP_yS,3,2)),\"00\"),VALUE(LEFT(dms_CRCP_yS,4)-1))","v":"2006-07"},"dms_CRCP_yR",9,null,null,null,null,null,null,null,null,null,"number",null,null,null,null,null,null,null,null,null,null,null,"5 - STPIS Exclusion (3.3)(a)"]
[null,"PTRM update 7",null,null,10,"dms_FRCP_y10",10,"CRCP_y10",{"$f":"IF(dms_RPT=\"financial\",VALUE(LEFT(dms_FRCP_y9,4)+1)&\"-\"&TEXT(VALUE(RIGHT(dms_FRCP_y9,2)+1),\"00\"),VALUE(LEFT(dms_FRCP_y9,4)+1))","v":"2024-25"},"dms_FRCP_y10",{"$f":"IF(dms_RPT=\"financial\",VALUE(LEFT(dms_CRCP_yR,4)-1)&\"-\"&TEXT(VALUE(MID(dms_CRCP_yR,3,2)),\"00\"),VALUE(LEFT(dms_CRCP_yR,4)-1))","v":"2005-06"},"dms_CRCP_yQ",10,null,null,null,null,null,null,null,null,null,"%",null,null,null,null,null,null,null,null,null,null,null,"6 - STPIS Exclusion (3.3)(a)"]
[null,"Regulatory proposal",null,null,11,"dms_FRCP_y11",11,"CRCP_y11",{"$f":"IF(dms_RPT=\"financial\",VALUE(LEFT(dms_FRCP_y10,4)+1)&\"-\"&TEXT(VALUE(RIGHT(dms_FRCP_y10,2)+1),\"00\"),VALUE(LEFT(dms_FRCP_y10,4)+1))","v":"2025-26"},"dms_FRCP_y11",{"$f":"IF(dms_RPT=\"financial\",VALUE(LEFT(dms_CRCP_yQ,4)-1)&\"-\"&TEXT(VALUE(MID(dms_CRCP_yQ,3,2)),\"00\"),VALUE(LEFT(dms_CRCP_yQ,4)-1))","v":"2004-05"},"dms_CRCP_yP",11,null,null,null,null,null,null,null,null,null,"number",null,null,null,null,null,null,null,null,null,null,null,"7 - STPIS Exclusion (3.3)(a)"]
[null,"Reporting",null,null,12,"dms_FRCP_y12",12,"CRCP_y12",{"$f":"IF(dms_RPT=\"financial\",VALUE(LEFT(dms_FRCP_y11,4)+1)&\"-\"&TEXT(VALUE(RIGHT(dms_FRCP_y11,2)+1),\"00\"),VALUE(LEFT(dms_FRCP_y11,4)+1))","v":"2026-27"},"dms_FRCP_y12",{"$f":"IF(dms_RPT=\"financial\",VALUE(LEFT(dms_CRCP_yP,4)-1)&\"-\"&TEXT(VALUE(MID(dms_CRCP_yP,3,2)),\"00\"),VALUE(LEFT(dms_CRCP_yP,4)-1))","v":"2003-04"},"dms_CRCP_yO",12,null,null,null,null,null,null,null,null,null,"%"]
[null,"Revised regulatory proposal",null,null,13,"dms_FRCP_y13",13,"CRCP_y13",{"$f":"IF(dms_RPT=\"financial\",VALUE(LEFT(dms_FRCP_y12,4)+1)&\"-\"&TEXT(VALUE(RIGHT(dms_FRCP_y12,2)+1),\"00\"),VALUE(LEFT(dms_FRCP_y12,4)+1))","v":"2027-28"},"dms_FRCP_y13",{"$f":"IF(dms_RPT=\"financial\",VALUE(LEFT(dms_CRCP_yO,4)-1)&\"-\"&TEXT(VALUE(MID(dms_CRCP_yO,3,2)),\"00\"),VALUE(LEFT(dms_CRCP_yO,4)-1))","v":"2002-03"},"dms_CRCP_yN",13,null,null,null,null,null,null,null,null,null,"number"]
[null,null,null,null,14,"dms_FRCP_y14",14,"CRCP_y14",{"$f":"IF(dms_RPT=\"financial\",VALUE(LEFT(dms_FRCP_y13,4)+1)&\"-\"&TEXT(VALUE(RIGHT(dms_FRCP_y13,2)+1),\"00\"),VALUE(LEFT(dms_FRCP_y13,4)+1))","v":"2028-29"},"dms_FRCP_y14",{"$f":"IF(dms_RPT=\"financial\",VALUE(LEFT(dms_CRCP_yN,4)-1)&\"-\"&TEXT(VALUE(MID(dms_CRCP_yN,3,2)),\"00\"),VALUE(LEFT(dms_CRCP_yN,4)-1))","v":"2001-02"},"dms_CRCP_yM",14,null,null,null,null,null,null,null,null,null,"%"]
[null,null,null,null,15,"dms_FRCP_y15",15,"CRCP_y15",{"$f":"IF(dms_RPT=\"financial\",VALUE(LEFT(dms_FRCP_y14,4)+1)&\"-\"&TEXT(VALUE(RIGHT(dms_FRCP_y14,2)+1),\"00\"),VALUE(LEFT(dms_FRCP_y14,4)+1))","v":"2029-30"},"dms_FRCP_y15",{"$f":"IF(dms_RPT=\"financial\",VALUE(LEFT(dms_CRCP_yM,4)-1)&\"-\"&TEXT(VALUE(MID(dms_CRCP_yM,3,2)),\"00\"),VALUE(LEFT(dms_CRCP_yM,4)-1))","v":"2000-01"},"dms_CRCP_yL",15,null,null,null,null,null,null,null,null,null,"number"]
[]
[null,null,null,null,"These are drop down lists for businesses to select the correct FRCP_y1 on the business and other details worksheet.\nThis also populates the column headings in the worksheets"]
[null,"dms_DataQuality_List",null,null,"dms_RCP_fyear_list","dms_CRY_ListF","dms_CRY_ListC","dms_RCP_cyear_list","dms_FRCP_fyear_list","dms_FRCP_ListF","dms_FRCP_ListC","dms_FRCP_cyear_list"]
[null,"Actual",null,null,"dms_fy1","2006-07",2007,"dms_cy1","dms_frcp_fy1","2016-17","2017","dms_crcp_cy1"]
[null,"Estimate",null,null,"dms_fy2","2007-08","2008","dms_cy2","dms_frcp_fy2","2017-18","2018","dms_crcp_cy2"]
[null,"Consolidated",null,null,"dms_fy3","2008-09","2009","dms_cy3","dms_frcp_fy3","2018-19","2019","dms_crcp_cy3"]
[null,"Recast",null,null,"dms_fy4","2009-10","2010","dms_cy4","dms_frcp_fy4","2019-20","2020","dms_crcp_cy4"]
[null,"Public",null,null,"dms_fy5","2010-11","2011","dms_cy5","dms_frcp_fy5","2020-21","2021","dms_crcp_cy5"]
[null,null,null,null,"dms_fy6","2011-12","2012","dms_cy6","dms_frcp_fy6","2021-22","2022","dms_crcp_cy6"]
[null,null,null,null,"dms_fy7","2012-13","2013","dms_cy7","dms_frcp_fy7","2022-23","2023","dms_crcp_cy7"]
[null,null,null,null,"dms_fy8","2013-14","2014","dms_cy8","dms_frcp_fy8","2023-24","2024","dms_crcp_cy8"]
[null,null,null,null,"dms_fy9","2014-15","2015","dms_cy9","dms_frcp_fy9","2024-25","2025","dms_crcp_cy9"]
[null,null,null,null,"dms_fy10","2015-16","2016","dms_cy10","dms_frcp_fy10","2025-26","2026","dms_crcp_cy10"]
[null,null,null,null,"dms_fy11","2016-17","2017","dms_cy11","dms_frcp_fy11","2026-27","2027","dms_crcp_cy11"]
[null,null,null,null,"dms_fy12","2017-18","2018","dms_cy12","dms_frcp_fy12","2027-28","2028","dms_crcp_cy12"]
[null,null,null,null,"dms_fy13","2018-19",2019,"dms_cy13","dms_frcp_fy13","2028-29","2029","dms_crcp_cy13"]
[null,null,null,null,"dms_fy14","2019-20","2020","dms_cy14","dms_frcp_fy14","2029-30","2030","dms_crcp_cy14"]
[null,null,null,null,"dms_fy15","2020-21","2021","dms_cy15","dms_frcp_fy15","2030-31","2031","dms_crcp_cy15"]

{"sheet":"Instructions","index":1,"n_rows":27,"n_cols":4,"rows_kept":27,"cut":false,"hidden":false,"merged":[[7,2,7,3],[1,1,1,5],[2,1,2,5],[3,2,3,4],[4,2,4,4],[5,2,5,4],[24,2,24,4],[25,2,25,3],[26,2,26,4],[8,2,8,4],[10,2,10,4],[12,2,12,4],[20,2,20,4],[22,2,22,4]]}
[]
[null,{"$f":"CONCATENATE(dms_Segment,\" Network Service Provider\")","v":"Distribution Network Service Provider"}]
[null,"Annual Reporting RIN Template"]
[null,null,{"$f":"CONCATENATE(\"This template is to be used by \",dms_TradingName,\" to fulfil its reporting obligations to the AER.\")","v":"This template is to be used by SA Power Networks to fulfil its reporting obligations to the AER."}]
[null,null,"INSTRUCTIONS"]
[null,null,"Complete the Business & other details worksheet before entering data or values in any other worksheets. The Business & other details worksheet is linked to other worksheets within the workbook and automatically generates certain column headings and conditional formatting."]
[]
[null,null,"Identifying CONFIDENTIAL INFORMATION:\n\nPlease use the macro at the top of each \nworksheet to identify confidential information. \n\n"]
[null,null,"-Do this by selecting the cell or cells that contain confidential information and then run the Mark selected cells as CONFIDENTIAL macro. This will format the cells a specific colour that is identified by the AER's database which in turn marks that information as confidential.\n\n-To reverse this, select the cell or cells and run the Return cells to NON-CONFIDENTIAL macro"]
[]
[null,null,"UNITS OF MEASURE\n\nAll amounts are to be unrounded and reported in nominal terms on a one for one basis: that is 1000 is to be entered as '1000'. Applicable units of measure may be identified in the table column headings or row descriptors.\n\n"]
[]
[null,null,"COLOUR CODING OF INPUT / NON-INPUT CELLS:"]
[null,null,null,"Yellow = Input cell (mandatory)"]
[null,null,null,"Darker yellow = input cell (mandatory)"]
[null,null,null,"Orange = input cell (if data available)"]
[null,null,null,"Grey = Not applicable/No inputs required"]
[null,null,null,"\nPLEASE DO NOT ENTER TEXT into cells that are to contain numeric data."]
[]
[]
[null,null,"WORKSHEET NAVIGATION\n\nMany tables in the worksheets have been \"grouped\" to allow for easy navigation. To ungroup or group data use the outline symbols in the left margin of excel (for Row groupings) or above the columns (for column groupings). \n\n\n\n"]
[]
[null,null,"RETURNING COMPLETED RESPONSES\n\nPlease return four (4) files to the AER: \n1. A confidential version which must contain a complete set of all responses with confidential information marked using the Mark selected cells CONFIDENTIAL macro and which has been completed using the locked template file provided by the AER. \n\n2. An actual and an estimate version with confidential information marked using the Mark selected cells CONFIDENTIAL macro and which has been completed using the locked template file provided by the AER.\n\n3. A public version with confidential information either removed completely or aggregated in some form together with writtten consent to disclose the public version of the response.\n\n\nUse the drop down box on the Business and other details worksheet to identify the file as either confidential ('consolidated') or public. "]
[]
[null,null,"SUBMITTING AMENDED DATA TO THE AER\n\nIf an NSP wishes to correct data previously submitted to the AER it should resubmit that data using the original completed submission as the starting point. Please make any necessary changes to the data. Data that is not being amended should be left unchanged. \n\nNSPs must identify the reason for the amendments in the Amendment Reason box on the  Business and other details worksheet. NSPs may provide further details regarding any amendments in the Amendments worksheet. \n\n."]
[null,null,"NSP may use Amended Data macro \nto highlight cells that contain amended data.\nNB: if data is also CONFIDENTIAL, re-apply \nthe Confidentiality macro after applying the \nAmended macro"]
[null,null,"Please resubmit two (2) files - a confidential version and a public version of the amended submission to the AER"]

{"sheet":"Contents","index":2,"n_rows":12,"n_cols":2,"rows_kept":12,"cut":false,"hidden":false,"merged":[]}
[null,"REGULATORY REPORTING STATEMENT"]
[null,{"$f":"dms_TradingName","v":"SA Power Networks"}]
[null,{"$f":"CONCATENATE(\"Benchmarking RIN response \",CRY)","v":"Benchmarking RIN response 2015-16"}]
[]
[null,"CONTENTS"]
[]
[]
[]
[]
[]
[]
[null,"3.             ECONOMIC BENCHMARKING"]

{"sheet":"Business & other details","index":3,"n_rows":88,"n_cols":9,"rows_kept":88,"cut":false,"hidden":false,"merged":[[23,4,23,7],[7,1,7,8],[11,1,11,8],[13,2,13,4],[14,2,14,4],[17,2,17,3],[17,4,17,7],[18,4,18,7],[19,2,19,3],[19,4,19,7],[22,2,22,3],[22,4,22,7],[54,0,87,0],[82,4,82,8],[24,2,24,3],[24,4,24,7],[32,1,32,8],[49,2,49,3],[51,2,51,8]]}
[null,"REGULATORY REPORTING STATEMENT"]
[null,{"$f":"dms_TradingName","v":"SA Power Networks"}]
[null,{"$f":"CONCATENATE(\"Benchmarking RIN response \",CRY)","v":"Benchmarking RIN response 2015-16"}]
[null,"BUSINESS & OTHER DETAILS"]
[]
[]
[null,"Instructions"]
[null,"Complete the following business details regulatory template before entering data or values in any other regulatory template. This regulatory template is linked to other cells within the spreadsheet and automatically generates column headings."]
[]
[null,"SUBMISSION PARTICULARS INPUT SHEETS"]
[]
[null,"ENTITY DETAILS"]
[]
[null,"Short name","SA Power Networks"]
[null,"ACN / ABN",{"$f":"INDEX(dms_ABN_List,MATCH(dms_TradingName,dms_TradingName_List))","v":13332330749}]
[]
[]
[null,"Business address","Address 1",null,{"$f":"INDEX(dms_Addr1_List,MATCH(dms_TradingName,dms_TradingName_List))","v":"1 Anzac Highway"}]
[null,null,null,"Address 2",{"$f":"IF(ISBLANK(INDEX(dms_Addr2_List,MATCH(dms_TradingName,dms_TradingName_List))),\"\",INDEX(dms_Addr2_List,MATCH(dms_TradingName,dms_TradingName_List)))","v":""}]
[null,null,"Suburb",null,{"$f":"INDEX(dms_Suburb_List,MATCH(dms_TradingName,dms_TradingName_List))","v":"KESWICK"}]
[null,null,null,"State",{"$f":"INDEX(dms_State_List,MATCH(dms_TradingName,dms_TradingName_List))","v":"SA"},"p/code",{"$f":"INDEX(dms_PostCode_List,MATCH(dms_TradingName,dms_TradingName_List))","v":"5035"}]
[]
[null,"Postal address","Address 1",null,{"$f":"INDEX(dms_PAddr1_List,MATCH(dms_TradingName,dms_TradingName_List))","v":"GPO Box 77"}]
[null,null,null,"Address 2",{"$f":"IF(ISBLANK(INDEX(dms_PAddr2_List,MATCH(dms_TradingName,dms_TradingName_List))),\"\",INDEX(dms_PAddr2_List,MATCH(dms_TradingName,dms_TradingName_List)))","v":""}]
[null,null,"Suburb",null,{"$f":"INDEX(dms_PSuburb_List,MATCH(dms_TradingName,dms_TradingName_List))","v":"ADELAIDE"}]
[null,null,null,"State",{"$f":"INDEX(dms_PState_List,MATCH(dms_TradingName,dms_TradingName_List))","v":"SA"},"p/code",5035]
[]
[]
[null,"Contact name/s","Richard Sibly"]
[null,"Contact phone/s"]
[null,"Contact email address/s"]
[]
[null,"REGULATORY CONTROL PERIODS"]
[]
[null,"Forthcoming regulatory control period","2015-16",{"$f":"dms_FRCP_y2","v":"2016-17"},{"$f":"dms_FRCP_y3","v":"2017-18"},{"$f":"dms_FRCP_y4","v":"2018-19"},{"$f":"dms_FRCP_y5","v":"2019-20"},{"$f":"dms_FRCP_y6","v":"2020-21"},{"$f":"IF(dms_RPT=\"financial\",VALUE(LEFT(FRCP_y6,4)+1)&\"-\"&VALUE(MID(FRCP_y6,3,2)+2),VALUE(LEFT(FRCP_y6,4)+1))","v":"2021-22"}]
[]
[]
[null,"Current regulatory control period",{"$f":"dms_CRCP_FirstYear_Result","v":"2010-11"},{"$f":"IF(dms_RPT=\"financial\",VALUE(LEFT(CRCP_y1,4)+1)&\"-\"&TEXT(VALUE(RIGHT(CRCP_y1,2)+1),\"0#\"),VALUE(LEFT(CRCP_y1,4)+1))","v":"2011-12"},{"$f":"IF(dms_RPT=\"financial\",VALUE(LEFT(CRCP_y2,4)+1)&\"-\"&TEXT(VALUE(RIGHT(CRCP_y2,2)+1),\"0#\"),VALUE(LEFT(CRCP_y2,4)+1))","v":"2012-13"},{"$f":"IF(dms_RPT=\"financial\",VALUE(LEFT(CRCP_y3,4)+1)&\"-\"&TEXT(VALUE(RIGHT(CRCP_y3,2)+1),\"0#\"),VALUE(LEFT(CRCP_y3,4)+1))","v":"2013-14"},{"$f":"IF(dms_RPT=\"financial\",VALUE(LEFT(CRCP_y4,4)+1)&\"-\"&TEXT(VALUE(RIGHT(CRCP_y4,2)+1),\"0#\"),VALUE(LEFT(CRCP_y4,4)+1))","v":"2014-15"},{"$f":"IF(dms_RPT=\"financial\",VALUE(LEFT(CRCP_y5,4)+1)&\"-\"&TEXT(VALUE(RIGHT(CRCP_y5,2)+1),\"0#\"),VALUE(LEFT(CRCP_y5,4)+1))","v":"2015-16"}]
[]
[]
[null,"Previous regulatory control period",{"$f":"IF(dms_RPT=\"financial\",VALUE(LEFT(PRCP_y2,4)-1)&\"-\"&TEXT(VALUE(MID(PRCP_y2,3,2)),\"0#\"),VALUE(LEFT(PRCP_y2,4)-1))","v":"2005-06"},{"$f":"IF(dms_RPT=\"financial\",VALUE(LEFT(PRCP_y3,4)-1)&\"-\"&TEXT(VALUE(MID(PRCP_y3,3,2)),\"0#\"),VALUE(LEFT(PRCP_y3,4)-1))","v":"2006-07"},{"$f":"IF(dms_RPT=\"financial\",VALUE(LEFT(PRCP_y4,4)-1)&\"-\"&TEXT(VALUE(MID(PRCP_y4,3,2)),\"0#\"),VALUE(LEFT(PRCP_y4,4)-1))","v":"2007-08"},{"$f":"IF(dms_RPT=\"financial\",VALUE(LEFT(PRCP_y5,4)-1)&\"-\"&TEXT(VALUE(RIGHT(PRCP_y5,2)-1),\"0#\"),VALUE(LEFT(PRCP_y5,4)-1))","v":"2008-09"},{"$f":"IF(dms_RPT=\"financial\",VALUE(LEFT(CRCP_y1,4)-1)&\"-\"&TEXT(VALUE(RIGHT(CRCP_y1,2)-1),\"0#\"),VALUE(LEFT(CRCP_y1,4)-1))","v":"2009-10"}]
[]
[]
[null,"Current regulatory year","2015-16","CRY"]
[]
[]
[]
[]
[]
[null,"Source","Reporting",null,"Please select the correct submission type from the dropdown list."]
[null,"Data quality (actual, estimate, public, consolidated)","Consolidated"]
[null,"Amended RIN submission - amendment reason","20190705 3.2.3 updated (D19/101543)"]
[null,"Submission Date","2019-07-05","dms_SubmissionDate","Please enter date this file submitted to AER (dd/mm/yyyy)"]
[null,"EBSS - First application of scheme in forthcoming period?","No"]
["HIDE THESE ROWS","Sector",{"$f":"INDEX(dms_Sector_List,MATCH(dms_TradingName,dms_TradingName_List))","v":"Electricity"},"dms_Sector","=INDEX(dms_Sector_List,MATCH(dms_TradingName,dms_TradingName_List))"]
[null,"Segment",{"$f":"INDEX(dms_Segment_List,MATCH(dms_TradingName,dms_TradingName_List))","v":"Distribution"},"dms_Segment","=INDEX(dms_Segment_List,MATCH(dms_TradingName,dms_TradingName_List))"]
[null,"Regulatory Year Ending",{"$f":"IF(dms_MultiYear_Flag=1,LEFT(dms_Specified_FinalYear,2)&RIGHT(dms_Specified_FinalYear,2),INDEX(dms_RYE_Formula_Result,MATCH(dms_Model,dms_Model_List)))","v":"2016"},"dms_RYE","=IF(dms_MultiYear_Flag=1,LEFT(dms_Specified_FinalYear,2)&RIGHT(dms_Specified_FinalYear,2),INDEX(dms_RYE_Formula_Result,MATCH(dms_Model,dms_Model_List)))"]
[null,"Reporting Period Type",{"$f":"INDEX(dms_RPT_List,MATCH(dms_TradingName,dms_TradingName_List))","v":"Financial"},"dms_RPT","=INDEX(dms_RPT_List,MATCH(dms_TradingName,dms_TradingName_List))"]
[null,"Model or RIN Type","EB","dms_Model","Drop down selection"]
[null,"Security Classification","Public","dms_Classification","Always Public"]
[null,"Template - version no.",5,"dms_TemplateNumber"]
[null,"Dollar $ real month",{"$f":"INDEX(dms_RPTMonth_List,MATCH(dms_TradingName,dms_TradingName_List))","v":"June"},"dms_RPTMonth","=INDEX(dms_RPTMonth_List,MATCH(dms_TradingName,dms_TradingName_List))"]
[null,"Dollar $ real  (the last month before the FRCP_y1)",{"$f":"IF(SUM(dms_SingleYear_Model)>0,CONCATENATE(dms_RPTMonth)&\" \"&VALUE((LEFT(CRY,2))&RIGHT(CRY,2)),CONCATENATE(dms_RPTMonth)&\" \"&VALUE((LEFT(dms_CRCP_FinalYear_Result,2))&RIGHT(dms_CRCP_FinalYear_Result,2)))","v":"June 2016"},"dms_DollarReal","=IF(SUM(dms_SingleYear_Model)>0,CONCATENATE(dms_RPTMonth)&\" \"&VALUE((LEFT(CRY,2))&RIGHT(CRY,2)),CONCATENATE(dms_RPTMonth)&\" \"&VALUE((LEFT(dms_CRCP_FinalYear_Result,2))&RIGHT(dms_CRCP_FinalYear_Result,2)))"]
[null,"Form of control",{"$f":"INDEX(dms_FormControl_List,MATCH(dms_TradingName,dms_TradingName_List))","v":"Revenue cap"},"dms_FormControl","=INDEX(dms_FormControl_List,MATCH(dms_TradingName,dms_TradingName_List))"]
[null,"RIN response - version no.",1,"dms_RINversion"]
[null,"Jurisdiction",{"$f":"INDEX(dms_JurisdictionList,MATCH(dms_TradingName,dms_TradingName_List))","v":"SA"},"dms_Jurisdiction","=INDEX(dms_JurisdictionList,MATCH(dms_TradingName,dms_TradingName_List))"]
[null,"Backcast Multiyear EB, CA or ARR?",0,"dms_MultiYear_Flag","1=y, 0-n"]
[null,null,2013,"dms_Specified_FinalYear","The result here is returned to dms_CRCP_FinalYear_Result if dms_MultiYear_Flag is set to 1"]
[null,"Single Year Model T/F",{"$f":"IF(dms_Model=\"EB\",1,0)","v":1},"dms_EB"]
[null,null,{"$f":"IF(dms_Model=\"CA\",1,0)","v":0},"dms_CA","=dms_SingleYear_Model"]
[null,null,{"$f":"IF(dms_Model=\"ARR\",1,0)","v":0},"dms_ARR"]
[null,"Single Year Final Year Reference","CRY","dms_SingleYear_FinalYear_Ref","This is the reference for EB, CA & ARR RINs"]
[null,"Single Year Final Year Result",{"$f":"INDIRECT(dms_SingleYear_FinalYear_Ref)","v":"2015-16"},"dms_SingleYear_FinalYear_Result","=INDIRECT(dms_SingleYear_FinalYear_Ref)",null,null,null,"Formula errors OK"]
[null,"FRCP length in years",{"$f":"INDEX(dms_FRCPlength_List,MATCH(dms_TradingName,dms_TradingName_List))","v":5},"dms_FRCPlength_Num","=INDEX(dms_FRCPlength_List,MATCH(dms_TradingName,dms_TradingName_List))"]
[null,"Multi Year Final Year Reference",{"$f":"INDEX(dms_FinalYear_List,MATCH(dms_FRCPlength_Num,dms_FRCPlength_Num_List))","v":"dms_FRCP_y5"},"dms_MultiYear_FinalYear_Ref","=INDEX(dms_FinalYear_List,MATCH(dms_FRCPlength_Num,dms_FRCPlength_Num_List))"]
[null,"Multi Year Final Year Result",{"$f":"IF(dms_MultiYear_Flag=0,INDIRECT(dms_MultiYear_FinalYear_Ref),dms_Specified_FinalYear)","v":"2019-20"},"dms_MultiYear_FinalYear_Result","=IF(dms_MultiYear_Flag=0,INDIRECT(dms_MultiYear_FinalYear_Ref),dms_Specified_FinalYear)",null,null,null,"Formula errors OK"]
[null,"CRCP length in years",{"$f":"INDEX(dms_CRCPlength_List,MATCH(dms_TradingName,dms_TradingName_List))","v":5},"dms_CRCPlength_Num","=INDEX(dms_CRCPlength_List,MATCH(dms_TradingName,dms_TradingName_List))"]
[null,"CRCP Final Year Reference",{"$f":"INDEX(dms_CFinalYear_List,MATCH(dms_CRCPlength_Num,dms_CRCPlength_Num_List))","v":"CRCP_y5"},"dms_CRCP_FinalYear_Ref","=INDEX(dms_CFinalYear_List,MATCH(dms_CRCPlength_Num,dms_CRCPlength_Num_List))"]
[null,"CRCP First Year Result",{"$f":"INDEX(dms_CRCP_years,MATCH(dms_CRCPlength_Num,dms_CRCP_index))","v":"2010-11"},"dms_CRCP_FirstYear_Result","=INDEX(dms_CRCP_years,MATCH(dms_CRCPlength_Num,dms_CRCP_index))"]
[null,"CRCP Final Year Result",{"$f":"IF(dms_MultiYear_Flag=0,(IF(SUM(dms_SingleYear_Model)>0,CRY,dms_CRCP_yZ)),dms_Specified_FinalYear)","v":"2015-16"},"dms_CRCP_FinalYear_Result","=IF(dms_MultiYear_Flag=0,(IF(SUM(dms_SingleYear_Model)>0,CRY,dms_CRCP_yZ)),dms_Specified_FinalYear)"]
[null,"Table 6.6.3 - Public lighting repair - no. business days",{"$f":"INDEX(dms_663_List,MATCH(dms_TradingName,dms_TradingName_List))","v":5},"dms_663"]
[null,"Distribution Determination Reference",{"$f":"INDEX(dms_DeterminationRef_List,MATCH(dms_TradingName,dms_TradingName_List))","v":"2015-20 Distribution Determination"}]
[null,"Backcast templates only - unit of measure ","$0s","dms_Backcast_UOM","If the cover sheet is for Backcast data ensure to apply dms_Backcast_UOM named range to this field. Otherwise, do not apply this named range."]
[null,"EB/CA Unit of Measure for Monetary Values","$0s","dms_dollar_nom_UOM","If the cover sheet is attached to an EB files make sure this field is set"]
[]
[null,"discard this record?","NO","dms_DISCARD","If record is to be discarded from DB set this flag to YES"]
[]
[null,"USES NAMED RANGES FLAG","yes","dms_Defined_Names_Used"]

{"sheet":"3.1 Revenue","index":4,"n_rows":49,"n_cols":4,"rows_kept":49,"cut":false,"hidden":false,"merged":[[9,2,9,3],[29,2,29,3],[41,2,41,3]]}
[null,"REGULATORY REPORTING STATEMENT"]
[null,{"$f":"dms_TradingName","v":"SA Power Networks"}]
[null,{"$f":"CONCATENATE(\"Benchmarking RIN response \",CRY)","v":"Benchmarking RIN response 2015-16"}]
[null,"3.1 REVENUE"]
[]
[null,"There are THREE tables on this worksheet. Each table has been grouped for ease of navigation. See the Instructions sheet on how to group or ungroup tables. "]
[]
[null,"3.1.1 - REVENUE GROUPING BY CHARGEABLE QUANTITY"]
[null,null,"Standard control services","Alternative control services"]
[null,null,"REVENUE\n($0's)"]
[null,null,{"$f":"CRY","v":"2015-16"},{"$f":"CRY","v":"2015-16"}]
["DREV0101","Revenue from Fixed Customer Charges ",80077619,0]
["DREV0102","Revenue from Energy Delivery charges where time of use is not a determinant",413907812,0]
["DREV0103","Revenue from On–Peak Energy Delivery charges ",32583593,0]
["DREV0104","Revenue from Shoulder period Energy Delivery Charges",0,0]
["DREV0105","Revenue from Off–Peak Energy Delivery charges ",28386840,0]
["DREV0106","Revenue from controlled load customer charges",16549670.999999998,0]
["DREV0107","Revenue from unmetered supplies",5157246,0]
["DREV0108","Revenue from Contracted Maximum Demand charges",123495566,0]
["DREV0109","Revenue from Measured Maximum Demand charges",16916040,0]
["DREV0110","Revenue from metering charges",0,17816089.331029683]
["DREV0111","Revenue from connection charges",0,0]
["DREV0112","Revenue from public lighting charges",0,0]
["DREV0113","Revenue from other Sources",-38062705.536566369,0]
["DREV01","Total revenue by chargeable quantity",{"$f":"SUM(C12:C24)","v":679011681.46343362},{"$f":"SUM(D12:D24)","v":17816089.331029683}]
[]
[]
[null,"3.1.2 - REVENUE GROUPING BY CUSTOMER TYPE OR CLASS"]
[null,null,"Standard control services","Alternative control services"]
[null,null,"REVENUE\n($0's)"]
[null,null,{"$f":"CRY","v":"2015-16"},{"$f":"CRY","v":"2015-16"}]
["DREV0201","Revenue from residential Customers ",365534674,15823960.712455528]
["DREV0202","Revenue from Non residential customers not on demand tariffs ",120676612,1992128.6185741522]
["DREV0203","Revenue from Non-residential low voltage demand tariff customers ",184240406,0]
["DREV0204","Revenue from Non-residential high voltage demand tariff customers ",41465449,0]
["DREV0205","Revenue from unmetered supplies",5157246,0]
["DREV0206","Revenue from Other Customers",-38062705.536566369,0]
["DREV02","Total revenue by customer class",{"$f":"SUM(C32:C37)","v":679011681.46343362},{"$f":"SUM(D32:D37)","v":17816089.33102968}]
[]
[null,"3.1.3 - REVENUE (penalties) ALLOWED (deducted) THROUGH INCENTIVE SCHEMES"]
[null,null,"Standard control services","Alternative control services"]
[null,null,"REVENUE\n($0's)"]
[null,null,{"$f":"CRY","v":"2015-16"},{"$f":"CRY","v":"2015-16"}]
["DREV0301","EBSS",101717.55725190841]
["DREV0302","STPIS",0]
["DREV0303","F-Factor "]
["DREV0304","S-Factor True up"]
["DREV0305","Other"]
["DREV03","Total revenue of incentive schemes",{"$f":"SUM(C44:C48)","v":101717.55725190841},{"$f":"SUM(D44:D48)","v":0}]

{"sheet":"3.2 Operating expenditure","index":5,"n_rows":79,"n_cols":4,"rows_kept":79,"cut":false,"hidden":false,"merged":[[14,2,14,3],[65,2,65,3]]}
[null,"REGULATORY REPORTING STATEMENT"]
[null,{"$f":"dms_TradingName","v":"SA Power Networks"}]
[null,{"$f":"CONCATENATE(\"Benchmarking RIN response \",CRY)","v":"Benchmarking RIN response 2015-16"}]
[null,"3.2 OPERATING EXPENDITURE"]
[]
[null,"There are THREE tables on this worksheet. Each table has been grouped for ease of navigation. See the Instructions sheet on how to group or ungroup tables. "]
[]
[null,"Instructions"]
[null,{"$f":"CONCATENATE(\"In table 3.2.1, please list each opex category reported in response to \",dms_TradingName, \"'s annual reporting RIN and report opex for each category.\")","v":"In table 3.2.1, please list each opex category reported in response to SA Power Networks's annual reporting RIN and report opex for each category."}]
[]
[]
[null,"3.2.1 - OPEX CATEGORIES"]
[null,"CURRENT OPEX CATEGORIES AND COST ALLOCATIONS"]
[null,null,"Standard control services","Alternative control services"]
[null,null,"EXPENDITURE\n($0's)"]
[null,null,{"$f":"CRY","v":"2015-16"},{"$f":"CRY","v":"2015-16"}]
["DOPEX0101","Distribution licence fee",2558186.8199999998,0]
["DOPEX0102","Network operating costs",26327893.280000001,0]
["DOPEX0103","Inspections",13641343.41,0]
["DOPEX0104","Maintenance & repair",14396779.889999997,2726925.52]
["DOPEX0105","Substation property maintenance",6786534.6720575998,0]
["DOPEX0106","Vegetation management",32029751.129999999,0]
["DOPEX0107","Emergency response",34747494.260000005,0]
["DOPEX0108","Guaranteed service level payments",3389550,0]
["DOPEX0109","Network insurance",1641531.1881209998,0]
["DOPEX0110","Call centre",3210252.2,0]
["DOPEX0111","Full retail contestability",15865522.385866668,2328232.1091333334]
["DOPEX0112","Meter reading",0,3562050.0499999993]
["DOPEX0113","Other customer services",6946344.6208092701,127291.2865803957]
["DOPEX0114","Corporate costs and other operating",52874705.793141991,1080225.0975399241]
["DOPEX0115"]
["DOPEX0116"]
["DOPEX0117"]
["DOPEX0118"]
["DOPEX0119"]
["DOPEX0120"]
["DOPEX0121"]
["DOPEX0122"]
["DOPEX0123"]
["DOPEX0124"]
["DOPEX0125"]
["DOPEX0126"]
["DOPEX0127"]
["DOPEX0128"]
["DOPEX0129"]
["DOPEX0130"]
["DOPEX0131"]
["DOPEX0132"]
["DOPEX0133"]
["DOPEX0134"]
["DOPEX0135"]
["DOPEX0136"]
["DOPEX0137"]
["DOPEX0138"]
["DOPEX0139"]
["DOPEX0140"]
["DOPEX0141"]
["DOPEX0142"]
["DOPEX01","Total opex ",{"$f":"SUM(C17:C58)","v":214415889.64999652},{"$f":"SUM(D17:D58)","v":9824724.0632536523}]
[]
[]
[]
[null,"3.2.2 - OPEX CONSISTENCY"]
[null,"CURRENT COST ALLOCATION APPROACH"]
[null,null,"Standard control services","Alternative control services"]
[null,null,"EXPENDITURE\n($0's)"]
[null,null,{"$f":"CRY","v":"2015-16"},{"$f":"CRY","v":"2015-16"}]
["DOPEX0201","Opex for network services",211867163.09531,0]
["DOPEX0202","Opex for metering",0,9776210.1758733541]
["DOPEX0203","Opex for connection services",2548726.5546865221,48513.887380298795]
["DOPEX0204","Opex for public lighting",0,0]
["DOPEX0205","Opex for amounts payable for easement levy or similar direct charges on DNSP",0,0]
["DOPEX0206","Opex for transmission connection point planning",0,0]
[]
[]
[]
[null,"3.2.4 - OPEX FOR HIGH VOLTAGE CUSTOMERS"]
[null,null,"End user costs (not standard control services)"]
["DOPEX0401","Opex for high voltage customers",1242523.4661358334]

{"sheet":"3.2.3 Provisions","index":6,"n_rows":373,"n_cols":3,"rows_kept":373,"cut":false,"hidden":false,"merged":[]}
[null,"REGULATORY REPORTING STATEMENT"]
[null,{"$f":"dms_TradingName","v":"SA Power Networks"}]
[null,{"$f":"CONCATENATE(\"Benchmarking RIN response \",CRY)","v":"Benchmarking RIN response 2015-16"}]
[null,"3.2 OPERATING EXPENDITURE"]
[]
[null,"The is ONE table on this worksheet. Each Provision has been grouped for ease of navigation. See the Instructions sheet on how to group and ungroup tables."]
[]
[null,"Instructions"]
[null,{"$f":"CONCATENATE(\"In table 3.2.3, please list each opex category reported in response to \",dms_TradingName, \"'s annual reporting RIN and report opex for each category.\")","v":"In table 3.2.3, please list each opex category reported in response to SA Power Networks's annual reporting RIN and report opex for each category."}]
[]
[null,"3.2.3 - PROVISIONS"]
[null,null,"VALUE ($0's)"]
[null,null,{"$f":"CRY","v":"2015-16"}]
["DOPEX03A","Annual Leave"]
[null,"Provision for employee annual leave entitlements"]
["DOPEX0301A","Opening balance (the carrying amount at the beginning of the period)",16426931.033072749]
[null,"Additional provisions made in the period, including increases to existing provisions"]
["DOPEX0302A","Opex component",7616750.8147611571]
["DOPEX0303A","Capex component",3879906.307001072]
["DOPEX0304A","Other component",0]
[null,"Amounts used (that is, incurred and charged against the provision) during the period"]
["DOPEX0305A","Opex component",-6872537.6183580495]
["DOPEX0306A","Capex component",-5516424.7888445202]
["DOPEX0307A","Other component",0]
[null,"Unused amounts reversed during the period"]
["DOPEX0308A","Opex component",0]
["DOPEX0309A","Capex component",0]
["DOPEX0310A","Other component",0]
[null,"The increase during the period in the discounted amount arising from the passage of time and the effect of any change in the discount rate"]
["DOPEX0311A","Opex component",123644.49676247145]
["DOPEX0312A","Capex component",0]
["DOPEX0313A","Other component",0]
["DOPEX0314A","Closing balance (carrying amount at the end of the period)",15658270.24439488]
["DOPEX03B","Long Service Leave"]
[null,"Provision for employee long service leave entitlements"]
["DOPEX0301B","Opening balance (the carrying amount at the beginning of the period)",48279615.930481456]
[null,"Additional provisions made in the period, including increases to existing provisions"]
["DOPEX0302B","Opex component",960723.94818590861]
["DOPEX0303B","Capex component",850302.1811044151]
["DOPEX0304B","Other component",0]
[null,"Amounts used (that is, incurred and charged against the provision) during the period"]
["DOPEX0305B","Opex component",-1931915.0604138533]
["DOPEX0306B","Capex component",-1691850.0583323175]
["DOPEX0307B","Other component",0]
[null,"Unused amounts reversed during the period"]
["DOPEX0308B","Opex component",-506976.12421982898]
["DOPEX0309B","Capex component",-443977.89680808655]
["DOPEX0310B","Other component",0]
[null,"The increase during the period in the discounted amount arising from the passage of time and the effect of any change in the discount rate"]
["DOPEX0311B","Opex component",-245347.88385135093]
["DOPEX0312B","Capex component",0]
["DOPEX0313B","Other component",0]
["DOPEX0314B","Closing balance (carrying amount at the end of the period)",45270575.036146343]
["DOPEX03C","Workers Compensation"]
[null,"Provision for potential workers compensation claims"]
["DOPEX0301C","Opening balance (the carrying amount at the beginning of the period)",1570951.7376811826]
[null,"Additional provisions made in the period, including increases to existing provisions"]
["DOPEX0302C","Opex component",684319.69382095814]
["DOPEX0303C","Capex component",0]
["DOPEX0304C","Other component",0]
[null,"Amounts used (that is, incurred and charged against the provision) during the period"]
["DOPEX0305C","Opex component",-494548.67489733291]
["DOPEX0306C","Capex component",0]
["DOPEX0307C","Other component",0]
[null,"Unused amounts reversed during the period"]
["DOPEX0308C","Opex component",-220461.21696981054]
["DOPEX0309C","Capex component",0]
["DOPEX0310C","Other component",0]
[null,"The increase during the period in the discounted amount arising from the passage of time and the effect of any change in the discount rate"]
["DOPEX0311C","Opex component",0]
["DOPEX0312C","Capex component",0]
["DOPEX0313C","Other component",0]
["DOPEX0314C","Closing balance (carrying amount at the end of the period)",1540261.539634997]
["DOPEX03D","Self Insurance"]
[null,"Provision for potential claims under SAPNs self insurance policies, including public liability"]
["DOPEX0301D","Opening balance (the carrying amount at the beginning of the period)",3146555]
[null,"Additional provisions made in the period, including increases to existing provisions"]
["DOPEX0302D","Opex component",4145346.5800000005]
["DOPEX0303D","Capex component",0]
["DOPEX0304D","Other component",0]
[null,"Amounts used (that is, incurred and charged against the provision) during the period"]
["DOPEX0305D","Opex component",-1930695.04]
["DOPEX0306D","Capex component",0]
["DOPEX0307D","Other component",0]
[null,"Unused amounts reversed during the period"]
["DOPEX0308D","Opex component",-731484.71]
["DOPEX0309D","Capex component",0]
["DOPEX0310D","Other component",0]
[null,"The increase during the period in the discounted amount arising from the passage of time and the effect of any change in the discount rate"]
["DOPEX0311D","Opex component",0]
["DOPEX0312D","Capex component",0]
["DOPEX0313D","Other component",0]
["DOPEX0314D","Closing balance (carrying amount at the end of the period)",4629721.83]
["DOPEX03E","Income Protection Scheme"]
[null,"Provision for potential employee claims under income protection scheme"]
["DOPEX0301E","Opening balance (the carrying amount at the beginning of the period)",-677.88744543719463]
[null,"Additional provisions made in the period, including increases to existing provisions"]
["DOPEX0302E","Opex component",293089.56033984583]
["DOPEX0303E","Capex component",0]
["DOPEX0304E","Other component",0]
[null,"Amounts used (that is, incurred and charged against the provision) during the period"]
["DOPEX0305E","Opex component",-177830.81768510345]
["DOPEX0306E","Capex component",0]
["DOPEX0307E","Other component",0]
[null,"Unused amounts reversed during the period"]
["DOPEX0308E","Opex component",-39835.522545543921]
["DOPEX0309E","Capex component",0]
["DOPEX0310E","Other component",0]
[null,"The increase during the period in the discounted amount arising from the passage of time and the effect of any change in the discount rate"]
["DOPEX0311E","Opex component",0]
["DOPEX0312E","Capex component",0]
["DOPEX0313E","Other component",0]
["DOPEX0314E","Closing balance (carrying amount at the end of the period)",74745.332663761263]
["DOPEX03F","Environmental"]
[null,"Provision for potential environmental claims, e.g. demolition and site restoration"]
["DOPEX0301F","Opening balance (the carrying amount at the beginning of the period)",1110000]
[null,"Additional provisions made in the period, including increases to existing provisions"]
["DOPEX0302F","Opex component",240385.2]
["DOPEX0303F","Capex component",0]
["DOPEX0304F","Other component",0]
[null,"Amounts used (that is, incurred and charged against the provision) during the period"]
["DOPEX0305F","Opex component",-112535.13]
["DOPEX0306F","Capex component",0]
["DOPEX0307F","Other component",0]
[null,"Unused amounts reversed during the period"]
["DOPEX0308F","Opex component",-394850.07]
["DOPEX0309F","Capex component",0]
["DOPEX0310F","Other component",0]
[null,"The increase during the period in the discounted amount arising from the passage of time and the effect of any change in the discount rate"]
["DOPEX0311F","Opex component",0]
["DOPEX0312F","Capex component",0]
["DOPEX0313F","Other component",0]
["DOPEX0314F","Closing balance (carrying amount at the end of the period)",842999.99999999977]
["DOPEX03G","Employee Bonuses"]
[null,"Provision for bonuses paid to employees for the achievement of key business performance measures"]
["DOPEX0301G","Opening balance (the carrying amount at the beginning of the period)",6454393.2472809488]
[null,"Additional provisions made in the period, including increases to existing provisions"]
["DOPEX0302G","Opex component",5125952.1726924246]
["DOPEX0303G","Capex component",0]
["DOPEX0304G","Other component",0]
[null,"Amounts used (that is, incurred and charged against the provision) during the period"]
["DOPEX0305G","Opex component",-6258131.610718579]
["DOPEX0306G","Capex component",0]
["DOPEX0307G","Other component",0]
[null,"Unused amounts reversed during the period"]
["DOPEX0308G","Opex component",0]
["DOPEX0309G","Capex component",0]
["DOPEX0310G","Other component",0]
[null,"The increase during the period in the discounted amount arising from the passage of time and the effect of any change in the discount rate"]
["DOPEX0311G","Opex component",0]
["DOPEX0312G","Capex component",0]
["DOPEX0313G","Other component",0]
["DOPEX0314G","Closing balance (carrying amount at the end of the period)",5322213.8092547944]
["DOPEX03H","Provision name"]
[null,"Brief description of provision"]
["DOPEX0301H","Opening balance (the carrying amount at the beginning of the period)"]
[null,"Additional provisions made in the period, including increases to existing provisions"]
["DOPEX0302H","Opex component"]
["DOPEX0303H","Capex component"]
["DOPEX0304H","Other component"]
[null,"Amounts used (that is, incurred and charged against the provision) during the period"]
["DOPEX0305H","Opex component"]
["DOPEX0306H","Capex component"]
["DOPEX0307H","Other component"]
[null,"Unused amounts reversed during the period"]
["DOPEX0308H","Opex component"]
["DOPEX0309H","Capex component"]
["DOPEX0310H","Other component"]
[null,"The increase during the period in the discounted amount arising from the passage of time and the effect of any change in the discount rate"]
["DOPEX0311H","Opex component"]
["DOPEX0312H","Capex component"]
["DOPEX0313H","Other component"]
["DOPEX0314H","Closing balance (carrying amount at the end of the period)"]
["DOPEX03I","Provision name"]
[null,"Brief description of provision"]
["DOPEX0301I","Opening balance (the carrying amount at the beginning of the period)"]
[null,"Additional provisions made in the period, including increases to existing provisions"]
["DOPEX0302I","Opex component"]
["DOPEX0303I","Capex component"]
["DOPEX0304I","Other component"]
[null,"Amounts used (that is, incurred and charged against the provision) during the period"]
["DOPEX0305I","Opex component"]
["DOPEX0306I","Capex component"]
["DOPEX0307I","Other component"]
[null,"Unused amounts reversed during the period"]
["DOPEX0308I","Opex component"]
["DOPEX0309I","Capex component"]
["DOPEX0310I","Other component"]
[null,"The increase during the period in the discounted amount arising from the passage of time and the effect of any change in the discount rate"]
["DOPEX0311I","Opex component"]
["DOPEX0312I","Capex component"]
["DOPEX0313I","Other component"]
["DOPEX0314I","Closing balance (carrying amount at the end of the period)"]
["DOPEX03J","Provision name"]
[null,"Brief description of provision"]
["DOPEX0301J","Opening balance (the carrying amount at the beginning of the period)"]
[null,"Additional provisions made in the period, including increases to existing provisions"]
["DOPEX0302J","Opex component"]
["DOPEX0303J","Capex component"]
["DOPEX0304J","Other component"]
[null,"Amounts used (that is, incurred and charged against the provision) during the period"]
["DOPEX0305J","Opex component"]
["DOPEX0306J","Capex component"]
["DOPEX0307J","Other component"]
[null,"Unused amounts reversed during the period"]
["DOPEX0308J","Opex component"]
["DOPEX0309J","Capex component"]
["DOPEX0310J","Other component"]
[null,"The increase during the period in the discounted amount arising from the passage of time and the effect of any change in the discount rate"]
["DOPEX0311J","Opex component"]
["DOPEX0312J","Capex component"]
["DOPEX0313J","Other component"]
["DOPEX0314J","Closing balance (carrying amount at the end of the period)"]
["DOPEX03K","Provision name"]
[null,"Brief description of provision"]
["DOPEX0301K","Opening balance (the carrying amount at the beginning of the period)"]
[null,"Additional provisions made in the period, including increases to existing provisions"]
["DOPEX0302K","Opex component"]
["DOPEX0303K","Capex component"]
["DOPEX0304K","Other component"]
[null,"Amounts used (that is, incurred and charged against the provision) during the period"]
["DOPEX0305K","Opex component"]
["DOPEX0306K","Capex component"]
["DOPEX0307K","Other component"]
[null,"Unused amounts reversed during the period"]
["DOPEX0308K","Opex component"]
["DOPEX0309K","Capex component"]
["DOPEX0310K","Other component"]
[null,"The increase during the period in the discounted amount arising from the passage of time and the effect of any change in the discount rate"]
["DOPEX0311K","Opex component"]
["DOPEX0312K","Capex component"]
["DOPEX0313K","Other component"]
["DOPEX0314K","Closing balance (carrying amount at the end of the period)"]
["DOPEX03L","Provision name"]
[null,"Brief description of provision"]
["DOPEX0301L","Opening balance (the carrying amount at the beginning of the period)"]
[null,"Additional provisions made in the period, including increases to existing provisions"]
["DOPEX0302L","Opex component"]
["DOPEX0303L","Capex component"]
["DOPEX0304L","Other component"]
[null,"Amounts used (that is, incurred and charged against the provision) during the period"]
["DOPEX0305L","Opex component"]
["DOPEX0306L","Capex component"]
["DOPEX0307L","Other component"]
[null,"Unused amounts reversed during the period"]
["DOPEX0308L","Opex component"]
["DOPEX0309L","Capex component"]
["DOPEX0310L","Other component"]
[null,"The increase during the period in the discounted amount arising from the passage of time and the effect of any change in the discount rate"]
["DOPEX0311L","Opex component"]
["DOPEX0312L","Capex component"]
["DOPEX0313L","Other component"]
["DOPEX0314L","Closing balance (carrying amount at the end of the period)"]
["DOPEX03M","Provision name"]
[null,"Brief description of provision"]
["DOPEX0301M","Opening balance (the carrying amount at the beginning of the period)"]
[null,"Additional provisions made in the period, including increases to existing provisions"]
["DOPEX0302M","Opex component"]
["DOPEX0303M","Capex component"]
["DOPEX0304M","Other component"]
[null,"Amounts used (that is, incurred and charged against the provision) during the period"]
["DOPEX0305M","Opex component"]
["DOPEX0306M","Capex component"]
["DOPEX0307M","Other component"]
[null,"Unused amounts reversed during the period"]
["DOPEX0308M","Opex component"]
["DOPEX0309M","Capex component"]
["DOPEX0310M","Other component"]
[null,"The increase during the period in the discounted amount arising from the passage of time and the effect of any change in the discount rate"]
["DOPEX0311M","Opex component"]
["DOPEX0312M","Capex component"]
["DOPEX0313M","Other component"]
["DOPEX0314M","Closing balance (carrying amount at the end of the period)"]
["DOPEX03N","Provision name"]
[null,"Brief description of provision"]
["DOPEX0301N","Opening balance (the carrying amount at the beginning of the period)"]
[null,"Additional provisions made in the period, including increases to existing provisions"]
["DOPEX0302N","Opex component"]
["DOPEX0303N","Capex component"]
["DOPEX0304N","Other component"]
[null,"Amounts used (that is, incurred and charged against the provision) during the period"]
["DOPEX0305N","Opex component"]
["DOPEX0306N","Capex component"]
["DOPEX0307N","Other component"]
[null,"Unused amounts reversed during the period"]
["DOPEX0308N","Opex component"]
["DOPEX0309N","Capex component"]
["DOPEX0310N","Other component"]
[null,"The increase during the period in the discounted amount arising from the passage of time and the effect of any change in the discount rate"]
["DOPEX0311N","Opex component"]
["DOPEX0312N","Capex component"]
["DOPEX0313N","Other component"]
["DOPEX0314N","Closing balance (carrying amount at the end of the period)"]
["DOPEX03O","Provision name"]
[null,"Brief description of provision"]
["DOPEX0301O","Opening balance (the carrying amount at the beginning of the period)"]
[null,"Additional provisions made in the period, including increases to existing provisions"]
["DOPEX0302O","Opex component"]
["DOPEX0303O","Capex component"]
["DOPEX0304O","Other component"]
[null,"Amounts used (that is, incurred and charged against the provision) during the period"]
["DOPEX0305O","Opex component"]
["DOPEX0306O","Capex component"]
["DOPEX0307O","Other component"]
[null,"Unused amounts reversed during the period"]
["DOPEX0308O","Opex component"]
["DOPEX0309O","Capex component"]
["DOPEX0310O","Other component"]
[null,"The increase during the period in the discounted amount arising from the passage of time and the effect of any change in the discount rate"]
["DOPEX0311O","Opex component"]
["DOPEX0312O","Capex component"]
["DOPEX0313O","Other component"]
["DOPEX0314O","Closing balance (carrying amount at the end of the period)"]
["DOPEX03P","Provision name"]
[null,"Brief description of provision"]
["DOPEX0301P","Opening balance (the carrying amount at the beginning of the period)"]
[null,"Additional provisions made in the period, including increases to existing provisions"]
["DOPEX0302P","Opex component"]
["DOPEX0303P","Capex component"]
["DOPEX0304P","Other component"]
[null,"Amounts used (that is, incurred and charged against the provision) during the period"]
["DOPEX0305P","Opex component"]
["DOPEX0306P","Capex component"]
["DOPEX0307P","Other component"]
[null,"Unused amounts reversed during the period"]
["DOPEX0308P","Opex component"]
["DOPEX0309P","Capex component"]
["DOPEX0310P","Other component"]
[null,"The increase during the period in the discounted amount arising from the passage of time and the effect of any change in the discount rate"]
["DOPEX0311P","Opex component"]
["DOPEX0312P","Capex component"]
["DOPEX0313P","Other component"]
["DOPEX0314P","Closing balance (carrying amount at the end of the period)"]
["DOPEX03Q","Provision name"]
[null,"Brief description of provision"]
["DOPEX0301Q","Opening balance (the carrying amount at the beginning of the period)"]
[null,"Additional provisions made in the period, including increases to existing provisions"]
["DOPEX0302Q","Opex component"]
["DOPEX0303Q","Capex component"]
["DOPEX0304Q","Other component"]
[null,"Amounts used (that is, incurred and charged against the provision) during the period"]
["DOPEX0305Q","Opex component"]
["DOPEX0306Q","Capex component"]
["DOPEX0307Q","Other component"]
[null,"Unused amounts reversed during the period"]
["DOPEX0308Q","Opex component"]
["DOPEX0309Q","Capex component"]
["DOPEX0310Q","Other component"]
[null,"The increase during the period in the discounted amount arising from the passage of time and the effect of any change in the discount rate"]
["DOPEX0311Q","Opex component"]
["DOPEX0312Q","Capex component"]
["DOPEX0313Q","Other component"]
["DOPEX0314Q","Closing balance (carrying amount at the end of the period)"]
["DOPEX03R","Provision name"]
[null,"Brief description of provision"]
["DOPEX0301R","Opening balance (the carrying amount at the beginning of the period)"]
[null,"Additional provisions made in the period, including increases to existing provisions"]
["DOPEX0302R","Opex component"]
["DOPEX0303R","Capex component"]
["DOPEX0304R","Other component"]
[null,"Amounts used (that is, incurred and charged against the provision) during the period"]
["DOPEX0305R","Opex component"]
["DOPEX0306R","Capex component"]
["DOPEX0307R","Other component"]
[null,"Unused amounts reversed during the period"]
["DOPEX0308R","Opex component"]
["DOPEX0309R","Capex component"]
["DOPEX0310R","Other component"]
[null,"The increase during the period in the discounted amount arising from the passage of time and the effect of any change in the discount rate"]
["DOPEX0311R","Opex component"]
["DOPEX0312R","Capex component"]
["DOPEX0313R","Other component"]
["DOPEX0314R","Closing balance (carrying amount at the end of the period)"]

{"sheet":"3.3 Assets (RAB)","index":7,"n_rows":138,"n_cols":5,"rows_kept":138,"cut":false,"hidden":false,"merged":[[9,2,9,4],[22,2,22,4],[116,2,116,4],[99,2,99,4]]}
[null,"REGULATORY REPORTING STATEMENT"]
[null,{"$f":"dms_TradingName","v":"SA Power Networks"}]
[null,{"$f":"CONCATENATE(\"Benchmarking RIN response \",CRY)","v":"Benchmarking RIN response 2015-16"}]
[null,"3.3 ASSETS"]
[]
[null,"There are FOUR tables on this worksheet. Each table has been grouped (and sub-grouped) for ease of navigation. See the Instructions sheet on how to group or ungroup tables. "]
[]
[null,"3.3.1 - REGULATORY ASSET BASE VALUES"]
[null,null,"Network services","Standard control services","Alternative control services"]
[null,null,"VALUE ($0's)"]
[null,null,{"$f":"CRY","v":"2015-16"},{"$f":"CRY","v":"2015-16"},"2015-16"]
[null,"FOR TOTAL ASSET BASE"]
["DRAB0101","Opening value",3572345661.0058537,3761548687.7937403,75767642.783495113]
["DRAB0102","Inflation addition",60321033.675521374,63515831.501208067,1279378.5835862313]
["DRAB0103","Straight line depreciation",-196888133.69932398,-209730602.12000003,-8298380.1399999997]
["DRAB0105","Actual additions (recognised in RAB)",236435436.05879238,249782906.11879238,1955864.0764137621]
["DRAB0106","Disposals ",-2041442.81,-2041442.81,0]
["DRAB0107","Closing value",{"$f":"SUM(C13:C17)","v":3670172554.2308435},{"$f":"SUM(D13:D17)","v":3863075380.4837413},70704505.303495109]
[]
[]
[null,"3.3.2 - ASSET VALUE ROLL FORWARD"]
[null,null,"Network services","Standard control services","Alternative control services"]
[null,null,"VALUE ($0's)"]
[null,null,{"$f":"CRY","v":"2015-16"},{"$f":"CRY","v":"2015-16"},"2015-16"]
[null,"For overhead network assets less than 33kV:"]
["DRAB0201","Opening value",537773025.62776387,610004065.10406256,0]
["DRAB0202","Inflation addition",9080595.1794557571,10300256.258792877,0]
["DRAB0203","Straight line depreciation",-32906168.349069051,-37677913.579999998,0]
["DRAB0205","Actual additions (recognised in RAB)",-123105586.13392457,-113301428.27238089,0]
["DRAB0206","Disposals ",0,0,0]
["DRAB0207","Closing value",{"$f":"SUM(C26:C30)","v":390841866.32422602},{"$f":"SUM(D26:D30)","v":469324979.5104745},{"$f":"SUM(E26:E30)","v":0}]
[null,"For underground network assets less than 33kV:"]
["DRAB0301","Opening value",{"$f":"'[3]2015-16 RAB Workings'!C16","v":858838397.13231599},{"$f":"'[3]2015-16 RAB Workings'!C3","v":975810384.4439038},0]
["DRAB0302","Inflation addition",{"$f":"'[3]2015-16 RAB Workings'!C20","v":14501961.677656412},{"$f":"'[3]2015-16 RAB Workings'!C7","v":16477098.424005985},0]
["DRAB0303","Straight line depreciation",{"$f":"'[3]2015-16 RAB Workings'!C21","v":-60904120.000254929},{"$f":"'[3]2015-16 RAB Workings'!C8","v":-68974843.190000013},0]
["DRAB0305","Actual additions (recognised in RAB)",{"$f":"'[3]2015-16 RAB Workings'!C18+'[3]2015-16 RAB Workings'!C22","v":-6288729.046087414},{"$f":"'[3]2015-16 RAB Workings'!C5+'[3]2015-16 RAB Workings'!C9","v":-2745416.8476310968},0]
["DRAB0306","Disposals ",{"$f":"'[3]2015-16 RAB Workings'!C23","v":0},{"$f":"'[3]2015-16 RAB Workings'!C10","v":0},0]
["DRAB0307","Closing value",{"$f":"SUM(C33:C37)","v":806147509.76363003},{"$f":"SUM(D33:D37)","v":920567222.83027864},{"$f":"SUM(E33:E37)","v":0}]
[null,"For distribution substations and transformers:"]
["DRAB0401","Opening value",{"$f":"'[3]2015-16 RAB Workings'!D16","v":945913977.03000724},{"$f":"'[3]2015-16 RAB Workings'!D3","v":945913977.03000724},0]
["DRAB0402","Inflation addition",{"$f":"'[3]2015-16 RAB Workings'!D20","v":15972281.038030267},{"$f":"'[3]2015-16 RAB Workings'!D7","v":15972281.038030267},0]
["DRAB0403","Straight line depreciation",{"$f":"'[3]2015-16 RAB Workings'!D21","v":-54299193.830000006},{"$f":"'[3]2015-16 RAB Workings'!D8","v":-54299193.830000006},0]
["DRAB0405","Actual additions (recognised in RAB)",{"$f":"'[3]2015-16 RAB Workings'!D18+'[3]2015-16 RAB Workings'!D22","v":241514968.99417722},{"$f":"'[3]2015-16 RAB Workings'!D5+'[3]2015-16 RAB Workings'!D9","v":241514968.99417722},0]
["DRAB0406","Disposals ",{"$f":"'[3]2015-16 RAB Workings'!D23","v":0},{"$f":"'[3]2015-16 RAB Workings'!D10","v":0},0]
["DRAB0407","Closing value",{"$f":"SUM(C40:C44)","v":1149102033.2322147},{"$f":"SUM(D40:D44)","v":1149102033.2322147},{"$f":"SUM(E40:E44)","v":0}]
[null,"For overhead network assets 33kV and above:"]
["DRAB0501","Opening value",{"$f":"'[3]2015-16 RAB Workings'!E16","v":145708010.51678517},{"$f":"'[3]2015-16 RAB Workings'!E3","v":145708010.51678517},0]
["DRAB0502","Inflation addition",{"$f":"'[3]2015-16 RAB Workings'!E20","v":2460360.4027224779},{"$f":"'[3]2015-16 RAB Workings'!E7","v":2460360.4027224779},0]
["DRAB0503","Straight line depreciation",{"$f":"'[3]2015-16 RAB Workings'!E21","v":-2945221.03},{"$f":"'[3]2015-16 RAB Workings'!E8","v":-2945221.03},0]
["DRAB0505","Actual additions (recognised in RAB)",{"$f":"'[3]2015-16 RAB Workings'!E18+'[3]2015-16 RAB Workings'!E22","v":6586395.2560444474},{"$f":"'[3]2015-16 RAB Workings'!E5+'[3]2015-16 RAB Workings'!E9","v":6586395.2560444474},0]
["DRAB0506","Disposals ",{"$f":"'[3]2015-16 RAB Workings'!E23","v":0},{"$f":"'[3]2015-16 RAB Workings'!E10","v":0},0]
["DRAB0507","Closing value",{"$f":"SUM(C47:C51)","v":151809545.1455521},{"$f":"SUM(D47:D51)","v":151809545.1455521},{"$f":"SUM(E47:E51)","v":0}]
[null,"For underground network assets 33kV and above:"]
["DRAB0601","Opening value",{"$f":"'[3]2015-16 RAB Workings'!F16","v":25198160.172399215},{"$f":"'[3]2015-16 RAB Workings'!F3","v":25198160.172399215},0]
["DRAB0602","Inflation addition",{"$f":"'[3]2015-16 RAB Workings'!F20","v":425484.88095983863},{"$f":"'[3]2015-16 RAB Workings'!F7","v":425484.88095983863},0]
["DRAB0603","Straight line depreciation",{"$f":"'[3]2015-16 RAB Workings'!F21","v":-421296.85},{"$f":"'[3]2015-16 RAB Workings'!F8","v":-421296.85},0]
["DRAB0605","Actual additions (recognised in RAB)",{"$f":"'[3]2015-16 RAB Workings'!F18+'[3]2015-16 RAB Workings'!F22","v":-3486869.8643926755},{"$f":"'[3]2015-16 RAB Workings'!F5+'[3]2015-16 RAB Workings'!F9","v":-3486869.8643926755},0]
["DRAB0606","Disposals ",{"$f":"'[3]2015-16 RAB Workings'!F23","v":0},{"$f":"'[3]2015-16 RAB Workings'!F10","v":0},0]
["DRAB0607","Closing value",{"$f":"SUM(C54:C58)","v":21715478.338966377},{"$f":"SUM(D54:D58)","v":21715478.338966377},{"$f":"SUM(E54:E58)","v":0}]
[null,"Zone substations and transformers"]
["DRAB0701","Opening value",{"$f":"'[3]2015-16 RAB Workings'!G16","v":509264108.41311044},{"$f":"'[3]2015-16 RAB Workings'!G3","v":509264108.41311044},0]
["DRAB0702","Inflation addition",{"$f":"'[3]2015-16 RAB Workings'!G20","v":8599206.3334296346},{"$f":"'[3]2015-16 RAB Workings'!G7","v":8599206.3334296346},0]
["DRAB0703","Straight line depreciation",{"$f":"'[3]2015-16 RAB Workings'!G21","v":-17550050.350000001},{"$f":"'[3]2015-16 RAB Workings'!G8","v":-17550050.350000001},0]
["DRAB0705","Actual additions (recognised in RAB)",{"$f":"'[3]2015-16 RAB Workings'!G18+'[3]2015-16 RAB Workings'!G22","v":-6767046.0937423706},{"$f":"'[3]2015-16 RAB Workings'!G5+'[3]2015-16 RAB Workings'!G9","v":-6767046.0937423706},0]
["DRAB0706","Disposals ",{"$f":"'[3]2015-16 RAB Workings'!G23","v":0},{"$f":"'[3]2015-16 RAB Workings'!G10","v":0},0]
["DRAB0707","Closing value",{"$f":"SUM(C61:C65)","v":493546218.30279768},{"$f":"SUM(D61:D65)","v":493546218.30279768},{"$f":"SUM(E61:E65)","v":0}]
[null,"For easements:"]
["DRAB0801","Opening value",{"$f":"'[3]2015-16 RAB Workings'!H16","v":6047418.391771392},{"$f":"'[3]2015-16 RAB Workings'!H3","v":6047418.391771392},0]
["DRAB0802","Inflation addition",{"$f":"'[3]2015-16 RAB Workings'!H20","v":102114.00661527738},{"$f":"'[3]2015-16 RAB Workings'!H7","v":102114.00661527738},0]
[]
["DRAB0805","Actual additions (recognised in RAB)",{"$f":"'[3]2015-16 RAB Workings'!H18+'[3]2015-16 RAB Workings'!H22","v":576044.82070053462},{"$f":"'[3]2015-16 RAB Workings'!H5+'[3]2015-16 RAB Workings'!H9","v":576044.82070053462},0]
["DRAB0806","Disposals ",{"$f":"'[3]2015-16 RAB Workings'!H23","v":0},{"$f":"'[3]2015-16 RAB Workings'!H10","v":0},0]
["DRAB0807","Closing value",{"$f":"SUM(C68:C72)","v":6725577.219087204},{"$f":"SUM(D68:D72)","v":6725577.219087204},{"$f":"SUM(E68:E72)","v":0}]
[null,"For meters:"]
["DRAB0901","Opening value",0,0,{"$f":"'[3]2015-16 RAB Workings'!M3","v":75610825.325131342}]
["DRAB0902","Inflation addition",0,0,{"$f":"'[3]2015-16 RAB Workings'!M7","v":1276730.6340078562}]
["DRAB0903","Straight line depreciation",0,0,{"$f":"'[3]2015-16 RAB Workings'!M8","v":-8283769.8999999994}]
["DRAB0905","Actual additions (recognised in RAB)",0,0,{"$f":"'[3]2015-16 RAB Workings'!M5+'[3]2015-16 RAB Workings'!M9","v":1955864.0759921372}]
["DRAB0906","Disposals ",0,0,{"$f":"'[3]2015-16 RAB Workings'!M10","v":0}]
["DRAB0907","Closing value",{"$f":"SUM(C75:C79)","v":0},{"$f":"SUM(D75:D79)","v":0},{"$f":"SUM(E75:E79)","v":70559650.135131329}]
[null,"For “other” asset items with long lives:"]
["DRAB1001","Opening value",{"$f":"'[3]2015-16 RAB Workings'!I16","v":448565094.74902624},{"$f":"'[3]2015-16 RAB Workings'!I3","v":448565094.74902624},{"$f":"'[3]2015-16 RAB Workings'!N3","v":156817.45836376789}]
["DRAB1002","Inflation addition",{"$f":"'[3]2015-16 RAB Workings'!I20","v":7574269.8925727606},{"$f":"'[3]2015-16 RAB Workings'!I7","v":7574269.8925727606},{"$f":"'[3]2015-16 RAB Workings'!N7","v":2647.9495783750899}]
["DRAB1003","Straight line depreciation",{"$f":"'[3]2015-16 RAB Workings'!I21","v":-28042254.019999996},{"$f":"'[3]2015-16 RAB Workings'!I8","v":-28042254.019999996},{"$f":"'[3]2015-16 RAB Workings'!N8","v":-14610.24}]
["DRAB1005","Actual additions (recognised in RAB)",{"$f":"'[3]2015-16 RAB Workings'!I18+'[3]2015-16 RAB Workings'!I22","v":28613755.414645195},{"$f":"'[3]2015-16 RAB Workings'!I5+'[3]2015-16 RAB Workings'!I9","v":28613755.414645195},{"$f":"'[3]2015-16 RAB Workings'!N5+'[3]2015-16 RAB Workings'!N9","v":4.21624950831756E-4}]
["DRAB1006","Disposals ",{"$f":"'[3]2015-16 RAB Workings'!I23","v":-956585.63},{"$f":"'[3]2015-16 RAB Workings'!I10","v":-956585.63},{"$f":"'[3]2015-16 RAB Workings'!N10","v":0}]
["DRAB1007","Closing value",{"$f":"SUM(C82:C86)","v":455754280.40624422},{"$f":"SUM(D82:D86)","v":455754280.40624422},{"$f":"SUM(E82:E86)","v":144855.16836376794}]
[null,"For “other” asset items with short lives:"]
["DRAB1101","Opening value",{"$f":"'[3]2015-16 RAB Workings'!J16","v":95037468.97267434},{"$f":"'[3]2015-16 RAB Workings'!J3","v":95037468.97267434},0]
["DRAB1102","Inflation addition",{"$f":"'[3]2015-16 RAB Workings'!J20","v":1604760.2640789449},{"$f":"'[3]2015-16 RAB Workings'!J7","v":1604760.2640789449},0]
["DRAB1103","Straight line depreciation",{"$f":"'[3]2015-16 RAB Workings'!J21","v":180170.72999999963},{"$f":"'[3]2015-16 RAB Workings'!J8","v":180170.72999999963},0]
["DRAB1105","Actual additions (recognised in RAB)",{"$f":"'[3]2015-16 RAB Workings'!J18+'[3]2015-16 RAB Workings'!J22","v":98792502.711371988},{"$f":"'[3]2015-16 RAB Workings'!J5+'[3]2015-16 RAB Workings'!J9","v":98792502.711371988},0]
["DRAB1106","Disposals ",{"$f":"'[3]2015-16 RAB Workings'!J23","v":-1084857.18},{"$f":"'[3]2015-16 RAB Workings'!J10","v":-1084857.18},0]
["DRAB1107","Closing value",{"$f":"SUM(C89:C93)","v":194530045.49812526},{"$f":"SUM(D89:D93)","v":194530045.49812526},{"$f":"SUM(E89:E93)","v":0}]
[]
[]
[]
[null,"3.3.3 - TOTAL DISAGGREGATED RAB ASSET VALUES"]
[null,null,"Network services","Standard control services","Alternative control services"]
[null,null,"VALUE ($0's)"]
[null,null,{"$f":"CRY","v":"2015-16"},{"$f":"CRY","v":"2015-16"},"2015-16"]
["DRAB1201","Overhead distribution assets (wires and poles)",{"$f":"AVERAGE(C26,C31)","v":464307445.97599494},{"$f":"AVERAGE(D26,D31)","v":539664522.3072685},{"$f":"AVERAGE(E26,E31)","v":0}]
["DRAB1202","Underground distribution assets (cables, ducts etc)",{"$f":"AVERAGE(C33,C38)","v":832492953.44797301},{"$f":"AVERAGE(D33,D38)","v":948188803.63709116},{"$f":"AVERAGE(E54,E59)","v":0}]
["DRAB1203","Distribution substations including transformers",{"$f":"AVERAGE(C40,C45)","v":1047508005.1311109},{"$f":"AVERAGE(D40,D45)","v":1047508005.1311109},{"$f":"AVERAGE(E40,E45)","v":0}]
["DRAB1204","Overhead assets 33kV and above (wires and towers / poles etc)",{"$f":"AVERAGE(C47,C52)","v":148758777.83116865},{"$f":"AVERAGE(D47,D52)","v":148758777.83116865},{"$f":"AVERAGE(E47,E52)","v":0}]
["DRAB1205","Underground assets 33kV and above (cables, ducts etc)",{"$f":"AVERAGE(C54,C59)","v":23456819.255682796},{"$f":"AVERAGE(D54,D59)","v":23456819.255682796},{"$f":"AVERAGE(E54,E59)","v":0}]
["DRAB1206","Zone substations",{"$f":"AVERAGE(C61,C66)","v":501405163.35795403},{"$f":"AVERAGE(D61,D66)","v":501405163.35795403},{"$f":"AVERAGE(E61,E66)","v":0}]
["DRAB1207","Easements ",{"$f":"AVERAGE(C68,C73)","v":6386497.8054292984},{"$f":"AVERAGE(D68,D73)","v":6386497.8054292984},{"$f":"AVERAGE(E68,E73)","v":0}]
["DRAB1208","Meters",{"$f":"AVERAGE(C75,C80)","v":0},{"$f":"AVERAGE(D75,D80)","v":0},{"$f":"AVERAGE(E75,E80)","v":73085237.730131328}]
["DRAB1209","Other assets with long lives (please specify)",{"$f":"AVERAGE(C82,C87)","v":452159687.57763523},{"$f":"AVERAGE(D82,D87)","v":452159687.57763523},{"$f":"AVERAGE(E82,E87)","v":150836.31336376793}]
["DRAB1210","Other assets with short lives (please specify)",{"$f":"AVERAGE(C89,C94)","v":144783757.23539978},{"$f":"AVERAGE(D89,D94)","v":144783757.23539978},{"$f":"AVERAGE(E89,E94)","v":0}]
["DRAB13","Value of Capital Contributions or Contributed Assets (included in the above)"]
[]
[]
[null,"3.3.4 - ASSET LIVES"]
[null,null,"Network services","Standard control services","Alternative control services"]
[null,null,"Service Life (Years)"]
[null,null,{"$f":"CRY","v":"2015-16"},{"$f":"CRY","v":"2015-16"},"2015-16"]
[null,"ESTIMATED SERVICE LIFE OF NEW ASSETS"]
["DRAB1401","Overhead network assets less than 33kV (wires and poles)",{"$f":"'[3]Life Calcs 15-16'!E14","v":55},{"$f":"'[3]Life Calcs 15-16'!K14","v":55},0]
["DRAB1402","Underground network assets less than 33kV (cables)",{"$f":"'[3]Life Calcs 15-16'!E24","v":55},{"$f":"'[3]Life Calcs 15-16'!K24","v":55},0]
["DRAB1403","Distribution substations including transformers",{"$f":"'[3]Life Calcs 15-16'!E34","v":45},{"$f":"'[3]Life Calcs 15-16'!K34","v":45},0]
["DRAB1404","Overhead network assets 33kV and above (wires and towers / poles etc) ",{"$f":"'[3]Life Calcs 15-16'!E42","v":55.000000000000007},{"$f":"'[3]Life Calcs 15-16'!K42","v":55.000000000000007},0]
["DRAB1405","Underground network assets 33kV and above(cables, ducts etc)",{"$f":"'[3]Life Calcs 15-16'!E50","v":55},{"$f":"'[3]Life Calcs 15-16'!K50","v":55},0]
["DRAB1406","Zone substations and transformers",{"$f":"'[3]Life Calcs 15-16'!E59","v":45},{"$f":"'[3]Life Calcs 15-16'!K59","v":45},0]
["DRAB1407","Meters",0,0,{"$f":"'[3]Life Calcs 15-16'!Q67","v":15}]
["DRAB1408","“Other” assets with long lives",{"$f":"'[3]Life Calcs 15-16'!E81","v":17.891095106098437},{"$f":"'[3]Life Calcs 15-16'!K81","v":17.891095106098437},{"$f":"'[3]Life Calcs 15-16'!Q74","v":15}]
["DRAB1409","“Other” assets with short lives",{"$f":"'[3]Life Calcs 15-16'!E90","v":5.0000000000000009},{"$f":"'[3]Life Calcs 15-16'!K90","v":5.0000000000000009},0]
[null,"ESTIMATED RESIDUAL SERVICE LIFE"]
["DRAB1501","Overhead network assets less than 33kV (wires and poles)",{"$f":"'[3]Life Calcs 15-16'!E128","v":11.869655762205918},{"$f":"'[3]Life Calcs 15-16'!K128","v":12.024337669654811},0]
["DRAB1502","Underground network assets less than 33kV (cables)",{"$f":"'[3]Life Calcs 15-16'!E138","v":12.835729947368289},{"$f":"'[3]Life Calcs 15-16'!K138","v":13.012328356008666},0]
["DRAB1503","Distribution substations including transformers",{"$f":"'[3]Life Calcs 15-16'!E148","v":20.788938510247409},{"$f":"'[3]Life Calcs 15-16'!K148","v":20.788938510247409},0]
["DRAB1504","Overhead network assets 33kV and above (wires and towers / poles etc) ",{"$f":"'[3]Life Calcs 15-16'!E156","v":48.826894075516741},{"$f":"'[3]Life Calcs 15-16'!K156","v":48.826894075516741},0]
["DRAB1505","Underground network assets 33kV and above (cables, ducts etc)",{"$f":"'[3]Life Calcs 15-16'!E164","v":48.826894075516726},{"$f":"'[3]Life Calcs 15-16'!K164","v":48.826894075516726},0]
["DRAB1506","Zone substations and transformers",{"$f":"'[3]Life Calcs 15-16'!E173","v":26.763501462795485},{"$f":"'[3]Life Calcs 15-16'!K173","v":26.763501462795485},0]
["DRAB1507","Meters",0,0,{"$f":"'[3]Life Calcs 15-16'!Q181","v":8.2808524725320058}]
["DRAB1508","“Other” assets with long lives",{"$f":"'[3]Life Calcs 15-16'!E195","v":7.3135709262464852},{"$f":"'[3]Life Calcs 15-16'!K195","v":7.3135709262464852},{"$f":"'[3]Life Calcs 15-16'!Q188","v":9.917461859701314}]
["DRAB1509","“Other” assets with short lives",{"$f":"'[3]Life Calcs 15-16'!E204","v":3.1509799465794592},{"$f":"'[3]Life Calcs 15-16'!K204","v":3.1509799465794592},0]

{"sheet":"3.4 Operational data","index":8,"n_rows":139,"n_cols":4,"rows_kept":139,"cut":false,"hidden":false,"merged":[]}
[null,"REGULATORY REPORTING STATEMENT"]
[null,{"$f":"dms_TradingName","v":"SA Power Networks"}]
[null,{"$f":"CONCATENATE(\"Benchmarking RIN response \",CRY)","v":"Benchmarking RIN response 2015-16"}]
[null,"3.4 OPERATIONAL DATA"]
[]
[null,"There are THREE tables on this worksheet. Each table has been grouped for ease of navigation. See the Instructions sheet on how to group or ungroup tables. "]
[]
[null," 3.4.1 - ENERGY DELIVERY"]
[null,null,null,"Standard control services"]
[null,null,null,"VOLUME (0's)"]
[null,null,"Units",{"$f":"CRY","v":"2015-16"}]
["DOPED01","Total energy delivered","GWh",10355.11590956942]
[]
[]
[null," 3.4.1.1 - Energy grouping - delivery by chargeable quantity"]
["DOPED0201","Energy Delivery where time of use is not a determinant","GWh",8962.408579355133]
["DOPED0202","Energy Delivery at On-peak times","GWh",404.96051031764199]
["DOPED0203","Energy Delivery at Shoulder times ","GWh",0]
["DOPED0204","Energy Delivery at Off-peak times","GWh",352.79786504523599]
["DOPED0205","Controlled load energy deliveries","GWh",531.24508360404286]
["DOPED0206","Energy Delivery to unmetered supplies","GWh",103.70387124736565]
[]
[null," 3.4.1.2 - Energy - received from TNSP and other DNSPs by time of receipt"]
["DOPED0301","Energy into DNSP network at On-peak times","GWh",4891.5859361648882]
["DOPED0302","Energy into DNSP network at Shoulder times ","GWh"]
["DOPED0303","Energy into DNSP network at Off-peak times","GWh",5424.0816938351127]
["DOPED0304","Energy received from TNSP and other DNSPs not included in the above categories","GWh"]
[]
[null," 3.4.1.3 - Energy - received into DNSP system from embedded generation by time of receipt"]
["DOPED0401","Energy into DNSP network at On-peak times from non-residential embedded generation","GWh",142.82793230443704]
["DOPED0402","Energy into DNSP network at Shoulder times from non-residential embedded generation","GWh"]
["DOPED0403","Energy into DNSP network at Off-peak times from non-residential embedded generation","GWh",169.42977413756304]
["DOPED0404","Energy received from embedded generation not included in above categories from non-residential embedded generation","GWh"]
["DOPED0405","Energy into DNSP network at On-peak times from residential embedded generation","GWh",368.97860843330443]
["DOPED0406","Energy into DNSP network at Shoulder times from residential embedded generation","GWh"]
["DOPED0407","Energy into DNSP network at Off-peak times from residential embedded generation","GWh",158.83670323322337]
["DOPED0408","Energy received from embedded generation not included in above categories from residential embedded generation","GWh"]
[]
[null," 3.4.1.4 - Energy grouping  - customer type or class"]
["DOPED0501","Residential customers energy deliveries","GWh",3896.6475341595105]
["DOPED0502","Non residential customers not on demand tariffs energy deliveries","GWh",1294.8808195766426]
["DOPED0503","Non-residential low voltage demand tariff customers energy deliveries","GWh",3242.8074271011833]
["DOPED0504","Non-residential high voltage demand tariff customers energy deliveries","GWh",1817.0762574847199]
["DOPED0505","Other Customer Class Energy Deliveries","GWh",103.70387124736565]
[]
[]
[null," 3.4.2 - CUSTOMER NUMBERS"]
[null,null,null,"Standard control services"]
[null,null,null,"VOLUME (0's)"]
[null,null,null,{"$f":"CRY","v":"2015-16"}]
[null," 3.4.2.1 - Distribution customer numbers by customer type or class"]
["DOPCN0101","Residential customer numbers",null,756227]
["DOPCN0102","Non residential customers not on demand tariff customer numbers",null,90790]
["DOPCN0103","Low voltage demand tariff customer numbers",null,7474]
["DOPCN0104","High voltage demand tariff customer numbers",null,251]
["DOPCN0105","Unmetered Customer Numbers",null,2505]
["DOPCN0106","Other Customer Numbers",null,1399.5]
["DOPCN01","Total customer numbers",null,{"$f":"SUM(D52:D57)","v":858646.5}]
[]
[null," 3.4.2.2 - Distribution customer numbers by location on the network"]
["DOPCN0201","Customers on CBD network",null,5094.5]
["DOPCN0202","Customers on Urban network",null,594736]
["DOPCN0203","Customers on Short rural network",null,120275]
["DOPCN0204","Customers on Long rural network",null,138541]
["DOPCN02","Total customer numbers",null,{"$f":"SUM(D61:D64)","v":858646.5}]
[]
[null," 3.4.2.3 - Distribution customer numbers by TasNetworks (D) feeder categories (TasNetworks (D) only)"]
[null,"Critical Infrastructure"]
[null,"High Density Commercial"]
[null,"Urban"]
[null,"High Density Rural"]
[null,"Low Density Rural"]
[null,"Total customer numbers",null,{"$f":"SUM(D68:D72)","v":0}]
[]
[null," 3.4.2.4 - Unmetered Supply TasNetworks (D) only)"]
["DOPCN0301","Number of unmetered connections reported in customer numbers in the economic benchmarking RIN"]
["DOPCN0302","Unmetered connections not reported in customer numbers in the economic benchmarking RIN"]
["DOPCN0303","Total unmetered connections"]
[]
[]
[null," 3.4.3 - SYSTEM DEMAND"]
[null,null,null,"Standard control services"]
[null,null,null,"VOLUME (0's)"]
[null,null,"Units",{"$f":"CRY","v":"2015-16"}]
[null," 3.4.3.1 - Annual system maximum demand characteristics at the zone substation level – MW measure"]
["DOPSD0101","Non-coincident Summated Raw System Annual Maximum Demand","MW ",2894.4176070213157]
["DOPSD0102","Non–coincident Summated Weather Adjusted System Annual Maximum Demand 10% POE","MW ",3050.9229972222611]
["DOPSD0103","Non–coincident Summated Weather Adjusted System Annual Maximum Demand 50% POE","MW ",2764.0150632868153]
["DOPSD0104","Coincident Raw System Annual Maximum Demand","MW ",2533.4793037191635]
["DOPSD0105","Coincident Weather Adjusted System Annual Maximum Demand 10% POE","MW ",2672.7611642661627]
["DOPSD0106","Coincident Weather Adjusted System Annual Maximum Demand 50% POE","MW ",2416.7076982946337]
[]
[null," 3.4.3.2 - Annual system maximum demand characteristics at the transmission connection point  – MW measure"]
["DOPSD0107","Non-coincident Summated Raw System Annual Maximum Demand","MW ",2775.961812]
["DOPSD0108","Non–coincident Summated Weather Adjusted System Annual Maximum Demand 10% POE","MW ",2956.0966496556598]
["DOPSD0109","Non–coincident Summated Weather Adjusted System Annual Maximum Demand 50% POE","MW ",2676.7877662739993]
["DOPSD0110","Coincident Raw System Annual Maximum Demand","MW ",2599.1478159999997]
["DOPSD0111","Coincident Weather Adjusted System Annual Maximum Demand 10% POE","MW ",2781.5521629249583]
["DOPSD0112","Coincident Weather Adjusted System Annual Maximum Demand 50% POE","MW ",2520.4907983706898]
[]
[null," 3.4.3.3 - Annual system maximum demand characteristics at the zone substation level – MVA measure"]
["DOPSD0201","Non–coincident Summated Raw System Annual Maximum Demand"," MVA",3001.9959608433137]
["DOPSD0202","Non–coincident Summated Weather Adjusted System Annual Maximum Demand 10% POE"," MVA",3172.3337836668356]
["DOPSD0203","Non–coincident Summated Weather Adjusted System Annual Maximum Demand 50% POE"," MVA",2874.5505032414917]
["DOPSD0204","Coincident Raw System Annual Maximum Demand"," MVA",2617.6159828668615]
["DOPSD0205","Coincident Weather Adjusted System Annual Maximum Demand 10% POE"," MVA",2768.2704083942999]
["DOPSD0206","Coincident Weather Adjusted System Annual Maximum Demand 50% POE"," MVA",2503.1946550880511]
[]
[null," 3.4.3.4 - Annual system maximum demand characteristics at the transmission connection point – MVA measure"]
["DOPSD0207","Non–coincident Summated Raw System Annual Maximum Demand"," MVA",2802.4983426946642]
["DOPSD0208","Non–coincident Summated Weather Adjusted System Annual Maximum Demand 10% POE"," MVA",2984.2347313498067]
["DOPSD0209","Non–coincident Summated Weather Adjusted System Annual Maximum Demand 50% POE"," MVA",2702.5007018520773]
["DOPSD0210","Coincident Raw System Annual Maximum Demand"," MVA",2617.5517141543228]
["DOPSD0211","Coincident Weather Adjusted System Annual Maximum Demand 10% POE"," MVA",2807.6659298468721]
["DOPSD0212","Coincident Weather Adjusted System Annual Maximum Demand 50% POE"," MVA",2544.3154316217124]
[]
[null," 3.4.3.5 - Power factor conversion between MVA and MW"]
["DOPSD0301","Average overall network power factor conversion between MVA and MW","Factor",0.99053111636485436]
["DOPSD0302","Average power factor conversion for  low voltage distribution lines","Factor",0.93974725405707882]
["DOPSD0303","Average power factor conversion for 3.3 kV lines","Factor",0.89747848215496684]
["DOPSD0304","Average power factor conversion for 6.6 kV lines","Factor",0.90142510595734082]
["DOPSD0305","Average power factor conversion for 7.6 kV lines","Factor",0.94469651774208008]
["DOPSD0306","Average power factor conversion for 11 kV lines","Factor",0.96519486078179684]
["DOPSD0307","Average power factor conversion for SWER lines","Factor",0.96210409804344554]
["DOPSD0308","Average power factor conversion for 22 kV lines","Factor"]
["DOPSD0309","Average power factor conversion for 33 kV lines","Factor",0.96488044021053587]
["DOPSD0310","Average power factor conversion for 44 kV lines","Factor"]
["DOPSD0311","Average power factor conversion for 66 kV lines","Factor",0.99438099424811299]
["DOPSD0312","Average power factor conversion for 110 kV lines","Factor"]
["DOPSD0313","Average power factor conversion for 132 kV lines","Factor"]
["DOPSD0314","Average power factor conversion for 220 kV lines","Factor"]
[]
[null," 3.4.3.6 - Demand supplied (for customers charged on this basis) – MW measure"]
["DOPSD0401","Summated Chargeable Contracted Maximum Demand","MW "]
["DOPSD0402","Summated Chargeable Measured Maximum Demand ","MW ",3.1937E-2]
[]
[null," 3.4.3.7 - Demand supplied (for customers charged on this basis) – MVA measure"]
["DOPSD0403","Summated Chargeable Contracted Maximum Demand"," MVA",2190.2044865000003]
["DOPSD0404","Summated Chargeable Measured Maximum Demand "," MVA"]

{"sheet":"3.5 Physical assets","index":9,"n_rows":98,"n_cols":3,"rows_kept":98,"cut":false,"hidden":false,"merged":[]}
[null,"REGULATORY REPORTING STATEMENT"]
[null,{"$f":"dms_TradingName","v":"SA Power Networks"}]
[null,{"$f":"CONCATENATE(\"Benchmarking RIN response \",CRY)","v":"Benchmarking RIN response 2015-16"}]
[null,"3.5 PHYSICAL ASSETS"]
[]
[null,"There are THREE tables on this worksheet. Each table has been grouped (and sub-grouped) for ease of navigation. See the Instructions sheet on how to group or ungroup tables. "]
[]
[null,"3.5.1 - NETWORK CAPACITIES"]
[null,null,"VOLUME in KM's\n(0's)"]
[null,null,{"$f":"CRY","v":"2015-16"}]
[null,"Circuit length (kilometres)"]
[null,"3.5.1.1 - Overhead network length of circuit at each voltage"]
["DPA0101","Overhead low voltage distribution",18909]
["DPA0102","Overhead 2.2 kV"]
["DPA0103","Overhead 6.6kv"]
["DPA0104","Overhead 7.6 kV",289]
["DPA0105","Overhead 11 kV",17587]
["DPA0106","Overhead SWER",29136]
["DPA0107","Overhead 22 kV"]
["DPA0108","Overhead 33 kV",3962]
["DPA0109","Overhead 44 kV"]
["DPA0110","Overhead 66 kV",1439]
["DPA0111","Overhead 110kV"]
["DPA0112","Overhead 132 kV"]
["DPA0113","Overhead 220kV"]
["DPA0114","Other "]
["DPA01","Total overhead circuit km",{"$f":"SUM(C9:C26)","v":71322}]
[null,"3.5.1.2 - Underground network circuit length at each voltage"]
["DPA0201","Underground low voltage distribution",13273]
["DPA0202","Underground 5 kV"]
["DPA0203","Underground 6.6 Kv"]
["DPA0204","Underground 7.6 kV",110]
["DPA0205","Underground 11 kV",3874]
["DPA0206","Underground SWER",58]
["DPA0207","Underground 22 kV"]
["DPA0208","Underground 33 kV",118]
["DPA0209","Underground 66 kV",53]
["DPA0210","Underground 110 kV"]
["DPA0211","Underground 132 kV"]
["DPA0212","Other "]
["DPA02","Total underground circuit km",{"$f":"SUM(C29:C40)","v":17486}]
[null,null,"VOLUME in MVA\n(0's)"]
[null,"Circuit Capacity (MVA)",{"$f":"CRY","v":"2015-16"}]
[null,"3.5.1.3 - Estimated overhead network weighted average MVA capacity by voltage class"]
["DPA0301","Overhead low voltage distribution",0.17]
["DPA0302","Overhead 6.6 kV"]
["DPA0303","Overhead 7.6 kV",3.25]
["DPA0304","Overhead 11 kV",3.9]
["DPA0305","Overhead SWER",0.2]
["DPA0306","Overhead 22 kV"]
["DPA0307","Overhead 33 kV",10]
["DPA0308","Overhead 44 kV"]
["DPA0309","Overhead 66 kV",58]
["DPA0310","Overhead 110 kV"]
["DPA0311","Overhead 132 kV"]
["DPA0312","Overhead 220 kV"]
["DPA0313","Other "]
[null,"3.5.1.4 - Estimated underground network weighted average MVA capacity by voltage class"]
["DPA0401","Underground low voltage distribution",0.1]
["DPA0402","Underground 5 kV"]
["DPA0403","Underground 6.6 kV"]
["DPA0404","Underground 7.6 kV",3.23]
["DPA0405","Underground 11 kV",4.7699999999999996]
["DPA0406","Underground SWER",0.2]
["DPA0407","Underground 12.7 kV"]
["DPA0408","Underground 22 kV"]
["DPA0409","Underground 33 kV",14]
["DPA0410","Underground 66 kV",127]
["DPA0411","Underground 110 kV"]
["DPA0412","Underground 132 kV"]
["DPA0413","Other"]
[]
[]
[]
[null,"3.5.2 - TRANSFORMER CAPACITIES"]
[null,null,"VOLUME in MVA\n(0's)"]
[null,null,{"$f":"CRY","v":"2015-16"}]
[null,"3.5.2.1 - Distribution transformer total installed capacity"]
["DPA0501","Distribution transformer capacity owned by utility",8931.3652000000002]
["DPA0502","Distribution transformer capacity owned by High Voltage Customers",788.55821249999985]
["DPA0503","Cold spare capacity included in DPA0501",158.547]
[null,"3.5.2.2 - Zone substation transformer capacity"]
["DPA0601","Total installed capacity for first step transformation where there are two steps to reach distribution voltage",304.60000000000002]
["DPA0602","Total installed capacity for second step transformation where there are two steps to reach distribution voltage",125.3]
["DPA0603","Total zone substation transformer capacity where there is only a single step transformation to reach distribution voltage",4753.8900000000003]
["DPA0604","Total zone substation transformer  capacity ",5805.5]
["DPA0605","Cold spare capacity of zone substation transformers included in DPA0604",621.70000000000005]
[null,"3.5.2.3 - Distribution - other transformer capacity"]
[null,"Distribution other - transformer capacity owned by utility "]
[]
[]
[]
[null,"3.5.3 - PUBLIC LIGHTING"]
[null,null,"VOLUME \n(0's)"]
[null,null,{"$f":"CRY","v":"2015-16"}]
["DPA0701","Public lighting luminaires",228137]
["DPA0702","Public lighting poles",{"$f":"5000+100023","v":105023}]
["DPA0703","Public lighting columns "]

{"sheet":"3.6 Quality of service","index":10,"n_rows":36,"n_cols":4,"rows_kept":36,"cut":false,"hidden":false,"merged":[]}
[null,"REGULATORY REPORTING STATEMENT"]
[null,{"$f":"dms_TradingName","v":"SA Power Networks"}]
[null,{"$f":"CONCATENATE(\"Benchmarking RIN response \",CRY)","v":"Benchmarking RIN response 2015-16"}]
[null,"3.6 QUALITY OF SERVICE DATA"]
[]
[]
[null,"3.6.1 - RELIABILITY"]
[null,null,null,"(0's)"]
[null,null,"Units",{"$f":"CRY","v":"2015-16"}]
[null,"INCLUSIVE OF MEDs"]
["DQS0101","Whole of network unplanned SAIDI","minutes/customer",172.6]
["DQS0102","Whole of network unplanned SAIDI excluding excluded outages","minutes/customer",147.68]
["DQS0103","Whole of network unplanned SAIFI","interruptions/customer",1.4159999999999999]
["DQS0104","Whole of network unplanned SAIFI excluding excluded outages","interruptions/customer",1.2529999999999999]
[null,"EXCLUSIVE OF MEDs"]
["DQS0105","Whole of network unplanned SAIDI","minutes/customer",163.9]
["DQS0106","Whole of network unplanned SAIDI excluding excluded outages","minutes/customer",138.97]
["DQS0107","Whole of network unplanned SAIFI","interruptions/customer",1.3640000000000001]
["DQS0108","Whole of network unplanned SAIFI excluding excluded outages","interruptions/customer",1.2010000000000001]
[]
[null,"3.6.2 - ENERGY NOT SUPPLIED"]
[null,null,null,"(0's)"]
[null,null,"Units",{"$f":"CRY","v":"2015-16"}]
["DQS0201","Energy Not Supplied (planned)","GWh",1.5331759398643532]
["DQS0202","Energy Not Supplied (unplanned)","GWh",2.902813112809842]
["DQS02","Total",null,{"$f":"SUM(D24:D25)","v":4.435989052674195}]
[]
[null,"3.6.3 - SYSTEM LOSSES"]
[null,null,null,"(0's)"]
[null,null,"Unit",{"$f":"CRY","v":"2015-16"}]
["DQS03","System losses","%",7.5269498290303133E-2]
[]
[null,"3.6.4 - CAPACITY UTILISATION"]
[null,null,null,"(0's)"]
[null,null,"Unit",{"$f":"CRY","v":"2015-16"}]
["DQS04","Overall utilisation","%",0.5170947162810664]

{"sheet":"3.7 Operating environment","index":11,"n_rows":35,"n_cols":4,"rows_kept":35,"cut":false,"hidden":false,"merged":[]}
[null,"REGULATORY REPORTING STATEMENT"]
[null,{"$f":"dms_TradingName","v":"SA Power Networks"}]
[null,{"$f":"CONCATENATE(\"Benchmarking RIN response \",CRY)","v":"Benchmarking RIN response 2015-16"}]
[null,"3.7 OPERATING ENVIRONMENT FACTORS"]
[]
[]
[null,"3.7.1 - DENSITY FACTORS"]
[null,null,null,"(0's)"]
[null,null,"Units",{"$f":"CRY","v":"2015-16"}]
["DOEF0101","Customer density","Customer / km",{"$f":"'3.4 Operational data'!D65/dms_030703_01_Values","v":10.498160476863145}]
["DOEF0102","Energy density","MWh/customer",{"$f":"1000*'3.4 Operational data'!D12/'3.4 Operational data'!D65","v":12.059812634849639}]
["DOEF0103","Demand density","kVA / customer",{"$f":"1000*'3.4 Operational data'!D86/'3.4 Operational data'!D65","v":3.3709071276961073}]
[]
[null,"3.7.2 - TERRAIN FACTORS"]
[null,null,null,"(0's)"]
[null,null,null,{"$f":"CRY","v":"2015-16"}]
["DOEF0201","Rural proportion","%",0.73118247441783002]
["DOEF0202","Urban and CBD vegetation maintenance spans","Number of spans",14444]
["DOEF0203","Rural vegetation maintenance spans","Number of spans",53151]
["DOEF0204","Total vegetation maintenance spans","Number of spans",67595]
["DOEF0205","Total number of spans","Number of spans",745696]
["DOEF0206","Average urban and CBD vegetation maintenance span cycle","Years",2.8149999999999999]
["DOEF0207","Average rural vegetation maintenance span cycle","Years",1.39]
["DOEF0208","Average number of trees per urban and CBD vegetation maintenance span","Trees",3.3769999999999998]
["DOEF0209","Average number of trees per rural vegetation maintenance span","Trees",8.5779999999999994]
["DOEF0210","Average number of defects per urban and CBD vegetation maintenance span","Defects",1.907]
["DOEF0211","Average number of defects per rural vegetation maintenance span","Defects",1.1950000000000001]
["DOEF0212","Tropical proportion","Spans",0]
["DOEF0213","Standard vehicle access","km",5725.3140000000003]
["DOEF0214","Bushfire risk","Spans",416045]
[]
[null,"3.7.3 - SERVICE AREA FACTORS"]
[null,null,null,"(0's)"]
[null,null,null,{"$f":"CRY","v":"2015-16"}]
["DOEF0301","Route Line length","km",81790.186184748047]

{"sheet":"NSP amendments","index":12,"n_rows":2,"n_cols":3,"rows_kept":2,"cut":false,"hidden":false,"merged":[[0,1,0,2]]}
[null,{"$f":"CONCATENATE(dms_TradingName,\" data amendments\")","v":"SA Power Networks data amendments"}]
[null,"Amended Table","Comments"]